Workbook

Sheet Introduction
B6: Welcome to the MDT Production Rate Estimation Tool (PRET)
B8: This user-friendly tool is designed to help MDT to quantitatively estimate production rates of major controlling activities of highway projects using the historical project data.
B10: PRET consists of three major sections. A user needs to provide specific project parameters in the first section such as district, location type, season of work, budget type, and project type. Also, the user needs to provide the engineer's estimate of the project under consideration and quantities of work items.
B12: Once the input values are provided, PRET will estimate production rates for up to 31 major controlling activities using regression models.
B14: Historical production rates are also provided for comparison through common statistical measures with various districts, locations, and budget categories.

Sheet Input screen
B6: Select District | C6: District 2 - Butte
B7: The maintenance district where the project is geographically located.
B9: Select Location Type | C9: Urban
B10: Rural or Urban area is selected according to the location of the project.
B12: Select Season of Work | C12: Winter
B13: The season in which construction works is undertaken.
B15: Select Project Type | C15: 110 - Reconstruction/New Construction
B16: The project work type is selected from MDT's project work types.
B18: Enter Engineer's Estimate: | C18: 3000000

Sheet Coding
B1: CODING
A2: Select District
B3: Option | D3: Selection | E3: ='Input screen'!C6 -> District 2 - Butte
A4: 1 | B4: District 1 - Missoula | E4: Index | F4: Value
A5: 2 | B5: District 2 - Butte | F5: =MATCH(E3,District) -> 2
A6: 3 | B6: District 3 - Great Falls
A7: 4 | B7: District 4 - Glendive
A8: 5 | B8: District 5 - Billings
A9: Select Location
B10: Option | D10: Selection | E10: ='Input screen'!C9 -> Urban
A11: 0 | B11: Rural | E11: Index | F11: Value
A12: 1 | B12: Urban | F12: =IF(E10="Rural",0,1) -> 1
A13: Select Season of Work
B14: Option | D14: Selection | E14: ='Input screen'!C12 -> Winter
A15: 1 | B15: Winter | E15: Index | F15: Value
A16: 0 | B16: Construction | F16: =IF(E14="Construction",0,1) -> 1
A17: Select Allocated Budget
B18: Option | D18: Selection
A19: 0 | B19: Less than $2 Million | E19: Index | F19: Value
A20: 1 | B20: Greater than $2 Million | F20: =IF(B42<2000000,0,1) -> 1
A21: Select Project Type
B22: Option | D22: Selection | E22: ='Input screen'!C15 -> 110 - Reconstruction/New Construction
A23: Type code | B23: Project work type | E23: Index | F23: Value
A24: 110 | B24: Reconstruction/New Construction | C24: =CONCATENATE(A24," - ",B24) -> 110 - Reconstruction/New Construction | D24: =A24 -> 110 | F24: =VLOOKUP(E22,C24:D40,2,FALSE) -> 110
A25: 111 | B25: Facilities (Buildings) | C25: =CONCATENATE(A25," - ",B25) -> 111 - Facilities (Buildings) | D25: =A25 -> 111
A26: 141 | B26: Drainage | C26: 141 - Drainage | D26: 141
A27: 150 | B27: Major Rehabilitation | C27: 150 - Major Rehabilitation | D27: 150
A28: 160 | B28: Overlay | C28: 160 - Overlay | D28: 160
A29: 170 | B29: Portland Cement Concrete Pavement | C29: 170 - Portland Cement Concrete Pavement | D29: 170
A30: 183 | B30: Seal & Cover | C30: 183 - Seal & Cover | D30: 183
A31: 185 | B31: Crack Seal | C31: 185 - Crack Seal | D31: 185
A32: 210 | B32: Bridge Construction | C32: 210 - Bridge Construction | D32: 210
A33: 230 | B33: Major Bridge Rehabilitation | C33: 230 - Major Bridge Rehabilitation | D33: 230
A34: 232 | B34: Minor Bridge Rehabiiitation | C34: 232 - Minor Bridge Rehabiiitation | D34: 232
A35: 310 | B35: Safety | C35: 310 - Safety | D35: 310
A36: 410 | B36: Traffic Signals & Lighting | C36: 410 - Traffic Signals & Lighting | D36: 410
A37: 411 | B37: Signing, Pavment Markings | C37: 411 - Signing, Pavment Markings | D37: 411
A38: 510 | B38: Environmental | C38: 510 - Environmental | D38: 510
A39: 520 | B39: Landscaping | C39: 520 - Landscaping | D39: 520
A40: 620 | B40: Bicycle & Pedestrian Facilities | C40: 620 - Bicycle & Pedestrian Facilities | D40: 620
A41: Type in Dollar Amount of the Project:
B42: ='Input screen'!C18 -> 3000000

Sheet Production Rate Estimates
A1: PRODUCTION RATE ESTIMATES
A3: SN | B3: Activity Description | C3: Unit | D3: Quantity | E3: Production Rates (Per day) | F3: Statistical measures from historical data | K3: Note:
F4: Mean | G4: Q1 | H4: Median | I4: Q3 | K4: a. Provide quantities for controlling activities in column D.
A5: AA | B5: TOPSOIL-SALVAGING AND PLACING | C5: CUYD | E5: =Background!AD3 ->  | F5: 2313.421118 | G5: 306.1905 | H5: 1267.230833 | I5: 3071.395918 | K5: b. Predicted production rates are shown in column E.
A6: AB | B6: EXCAVATION-UNCLASSIFIED | C6: CUYD | E6: =Background!AD4 ->  | F6: 8874.346593 | G6: 940.6966667 | H6: 4950 | I6: 12541.83894 | K6: c. Mean: average production rate of historical projects.
A7: AC | B7: SPECIAL BORROW | C7: CUYD | E7: =Background!AD5 ->  | F7: 3640.253926 | G7: 644.7988954 | H7: 1807.802208 | I7: 3709.79125 | K7: d. Q1: 25% of historical projects have production rates lower than Q1.
A8: AD | B8: EXCAVATION-STREET | C8: CUYD | E8: =Background!AD6 ->  | F8: 1518.124488 | G8: 518.4025 | H8: 977.8472 | I8: 2426.366786 | K8: e. Median: 50% of historical projects have production rates lower than Median.
A9: AE | B9: CRUSHED AGGREGATE COURSE | C9: CUYD | E9: =Background!AD7 ->  | F9: 2087.992669 | G9: 132.09375 | H9: 636.1763179 | I9: 2653.521168 | K9: f. Q3: 75% of historical projects have production rates lower than Q3.
A10: AF | B10: BASE-CEMENT TREATED | C10: CUYD | E10: =Background!AD8 ->  | F10: 3453.363491 | G10: 1549.766595 | H10: 3565.800376 | I10: 5045.114
A11: AG | B11: DRAINAGE PIPE (<= 24 IN) | C11: LNFT | E11: =Background!AD9 ->  | F11: 95.23363221 | G11: 59.04230769 | H11: 86.7742142 | I11: 112.2285851
A12: AH | B12: DRAINAGE PIPE (> 24 IN) | C12: LNFT | E12: =Background!AD10 ->  | F12: 91.07711595 | G12: 54.82627953 | H12: 72.8 | I12: 118.5
A13: AI | B13: RCB | C13: LNFT | E13: =Background!AD11 ->  | F13: 95.32302275 | G13: 48.75 | H13: 66.01345144 | I13: 139.5
A14: AJ | B14: SSPP | C14: LNFT | E14: =Background!AD12 ->  | F14: 65.5 | G14: 21 | H14: 54 | I14: 98.5
A15: AK | B15: RIPRAP | C15: CUYD | E15: =Background!AD13 ->  | F15: 136.2533801 | G15: 23.6 | H15: 94.21 | I15: 202.7120133
A16: AL | B16: COLD MILLING | C16: SQYD | E16: =Background!AD14 ->  | F16: 15077.22791 | G16: 1911.1 | H16: 8220.1 | I16: 20472.35
A17: AM | B17: PLANT MIX SURFACING | C17: TON | E17: =Background!AD15 ->  | F17: 1508.934922 | G17: 378.2747159 | H17: 1027.791261 | I17: 2177.091273
A18: AN | B18: COVER | C18: SQYD | E18: =Background!AD16 ->  | F18: 83884.18652 | G18: 15891.575 | H18: 56360.18091 | I18: 120457.647
A19: AO | B19: MICROSURFACING | C19: TON | E19: =Background!AD17 ->  | F19: 464.5953972 | G19: 407.92375 | H19: 442.77525 | I19: 525.4656667
A20: AP | B20: CRACK SEALING | C20: LB | E20: =Background!AD18 ->  | F20: 6345.975029 | G20: 3003.75 | H20: 5129.788889 | I20: 8003.3375
A21: AQ | B21: PCCP | C21: SQYD | E21: =Background!AD19 ->  | F21: 568.3882639 | G21: 236.6725 | H21: 447.5 | I21: 1104.5
A22: AR | B22: CURB AND GUTTER | C22: LNFT | E22: =Background!AD20 ->  | F22: 408.3892593 | G22: 136.5574534 | H22: 261 | I22: 562.0110287
A23: AS | B23: SIDEWALK | C23: SQYD | E23: =Background!AD21 ->  | F23: 246.4866934 | G23: 60.775 | H23: 130.8101565 | I23: 282.522375
A24: AT | B24: FARM FENCE | C24: LNFT | E24: =Background!AD22 ->  | F24: 2205.871401 | G24: 540.3106955 | H24: 1423.1 | I24: 2422.373825
A25: AU | B25: GUARDRAIL STEEL | C25: LNFT | E25: =Background!AD23 ->  | F25: 679.5060407 | G25: 150 | H25: 424.437336 | I25: 901.6875
A26: AV | B26: CONCRETE BARRIER RAIL | C26: EACH | E26: =Background!AD24 ->  | F26: 57.5346688 | G26: 12.25 | H26: 25 | I26: 84.075
A27: AW | B27: SEEDING | C27: ACRE | E27: =Background!AD25 ->  | F27: 12.23642484 | G27: 2.5125 | H27: 7.2 | I27: 18.0654626
A28: AX | B28: REINFORCING STEEL | C28: LB | E28: =Background!AD26 ->  | F28: 13995.35078 | G28: 5194.741644 | H28: 10516.5 | I28: 18271.31667
A29: AY | B29: DRILLED SHAFT | C29: LNFT | E29: =Background!AD27 ->  | F29: 102.5616162 | G29: 59.00909091 | H29: 87.81818182 | I29: 138.7424242
A30: AZ | B30: CONCRETE-CLASS DECK | C30: CUYD | E30: =Background!AD28 ->  | F30: 72.62144162 | G30: 43.04465488 | H30: 60.55 | I30: 84.83278854
A31: BA | B31: CLASS A BRIDGE DECK REPAIR | C31: SQYD | E31: =Background!AD29 ->  | F31: 14.47450514 | G31: 4.875 | H31: 7.8 | I31: 17.16666667
A32: BB | B32: CONCRETE BARRIER RAIL-BRIDGE | C32: LNFT | E32: =Background!AD30 ->  | F32: 222.1675191 | G32: 88.04954068 | H32: 141.05 | I32: 252.275
A33: BC | B33: CONCRETE-CLASS OVERLAY | C33: CUYD | E33: =Background!AD31 ->  | F33: 31.44267857 | G33: 22.68303571 | H33: 34.81035714 | I33: 43.57
A34: BD | B34: BRIDGE DECK MILLING | C34: SQYD | E34: =Background!AD32 ->  | F34: 472.5310967 | G34: 311.7375 | H34: 394.125 | I34: 583.8477273
A35: BE | B35: REVISE BRIDGE CONCRETE BARRIER | C35: LNFT | E35: =Background!AD33 ->  | F35: 199.6882552 | G35: 69.125 | H35: 157.4 | I35: 245.25

Sheet Historical Production Rates
A1: HISTORICAL PRODUCTION RATES
A3: SN | B3: Activity Description | C3: Unit | D3: Mean | E3: Rural | J3: Urban | O3: Budget less than $2 Million | T3: Budget greater than $2 Million | Y3: District 1 | AD3: District 2 | AI3: District 3 | AN3: District 4 | AS3: District 5
D4: Mean | E4: Mean | F4: Q1 | G4: Median | H4: Q3 | I4: N | J4: Mean | K4: Q1 | L4: Median | M4: Q3 | N4: N | O4: Mean | P4: Q1 | Q4: Median | R4: Q3 | S4: N | T4: Mean | U4: Q1 | V4: Median | W4: Q3 | X4: N | Y4: Mean | Z4: Q1 | AA4: Median | AB4: Q3 | AC4: N | AD4: Mean | AE4: Q1 | AF4: Median | AG4: Q3 | AH4: N | AI4: Mean | AJ4: Q1 | AK4: Median | AL4: Q3 | AM4: N | AN4: Mean | AO4: Q1 | AP4: Median | AQ4: Q3 | AR4: N | AS4: Mean | AT4: Q1 | AU4: Median | AV4: Q3 | AW4: N
A5: AA | B5: TOPSOIL-SALVAGING AND PLACING | C5: CUYD | D5: 2313.421118 | E5: 2504.8341 | F5: 392.465 | G5: 1388.515 | H5: 3323.8625 | I5: 180 | J5: 1174.0869 | K5: 153.13 | L5: 531.95 | M5: 2058.81 | N5: 13 | O5: 1015.4754 | P5: 122.9375 | Q5: 352.205 | R5: 1248.28 | S5: 80 | T5: 3383.0679 | U5: 1140.16 | V5: 2619.54 | W5: 4629.56 | X5: 115 | Y5: 1902.1489 | Z5: 272.5625 | AA5: 1566.5 | AB5: 2784.53 | AC5: 36 | AD5: 2114.1415 | AE5: 261.6 | AF5: 847.23 | AG5: 2708.92 | AH5: 39 | AI5: 3384.0484 | AJ5: 394.9925 | AK5: 1144.965 | AL5: 3015.94 | AM5: 38 | AN5: 2818.7038 | AO5: 150.635 | AP5: 1487.23 | AQ5: 4650.4 | AR5: 37 | AS5: 2886.2752 | AT5: 800.3525 | AU5: 1783.605 | AV5: 3200.8 | AW5: 44
A6: AB | B6: EXCAVATION-UNCLASSIFIED | C6: CUYD | D6: 8874.346593 | E6: 9274.0571 | F6: 1219 | G6: 5506 | H6: 13169.75 | I6: 140 | J6: 9468.4 | K6: 107 | L6: 318 | M6: 14370 | N6: 15 | O6: 3186.1176 | P6: 321.75 | Q6: 1127 | R6: 4884.25 | S6: 68 | T6: 13972.124 | U6: 4507.5 | V6: 10455 | W6: 21758.5 | X6: 89 | Y6: 7298 | Z6: 518.75 | AA6: 3236 | AB6: 9060.75 | AC6: 46 | AD6: 7974.4828 | AE6: 902.5 | AF6: 4185 | AG6: 12556 | AH6: 29 | AI6: 9818.7083 | AJ6: 820.25 | AK6: 6003 | AL6: 13560.5 | AM6: 24 | AN6: 13725.826 | AO6: 2206 | AP6: 11171 | AQ6: 21875 | AR6: 23 | AS6: 9632.1765 | AT6: 2112.75 | AU6: 6123 | AV6: 13609.75 | AW6: 34
A7: AC | B7: SPECIAL BORROW | C7: CUYD | D7: 3640.253926 | E7: 3919.7386 | F7: 744.9425 | G7: 1938.915 | H7: 3644.6775 | I7: 110 | J7: 1645.7063 | K7: 269.0125 | L7: 694.365 | M7: 1842.2575 | N7: 16 | O7: 1159.9043 | P7: 236.26 | Q7: 583.41 | R7: 1629.19 | S7: 37 | T7: 4656.3185 | U7: 1063.4825 | V7: 2428.23 | W7: 4479.025 | X7: 92 | Y7: 3494.1914 | Z7: 356.685 | AA7: 1096 | AB7: 4489.4 | AC7: 29 | AD7: 5107.6897 | AE7: 686.875 | AF7: 2069.19 | AG7: 5003.395 | AH7: 29 | AI7: 2767.1613 | AJ7: 423.59 | AK7: 1665.77 | AL7: 2275.6 | AM7: 15 | AN7: 3108.7611 | AO7: 1197.51 | AP7: 1971.77 | AQ7: 3612.12 | AR7: 19 | AS7: 3340.9514 | AT7: 653.235 | AU7: 1796.355 | AV7: 3961.3225 | AW7: 36
A8: AD | B8: EXCAVATION-STREET | C8: CUYD | D8: 1518.124488 | E8: 2003.51 | F8: 714.425 | G8: 1522.71 | H8: 2620.5475 | I8: 12 | J8: 1173.917 | K8: 191.0075 | L8: 908.65 | M8: 2426.37 | N8: 10 | O8: 993.814 | P8: 191.0075 | Q8: 508.95 | R8: 2157.825 | S8: 10 | T8: 2153.5958 | U8: 898.3725 | V8: 1755.67 | W8: 2620.5475 | X8: 12 | Y8: 1812.925 | Z8: 1054.3375 | AA8: 1856.195 | AB8: 2528.2425 | AC8: 4 | AD8: 1423.7325 | AE8: 358.265 | AF8: 1362.495 | AG8: 2550.4375 | AH8: 4 | AI8: 1496.5571 | AJ8: 204.45 | AK8: 971.19 | AL8: 2647.9 | AM8: 7 | AN8: 1478.825 | AO8: 661.2 | AP8: 1478.825 | AQ8: 2296.45 | AR8: 2 | AS8: 1880.222 | AT8: 194.88 | AU8: 874.1 | AV8: 4068.625 | AW8: 5
A9: AE | B9: CRUSHED AGGREGATE COURSE | C9: CUYD | D9: 2087.992669 | E9: 2467.4925 | F9: 161.135 | G9: 794.305 | H9: 3158.82 | I9: 242 | J9: 686.37889 | K9: 75.3625 | L9: 452.01 | M9: 867.21 | N9: 36 | O9: 604.5981 | P9: 60.895 | Q9: 184.19 | R9: 557.495 | S9: 137 | T9: 3732.8838 | U9: 771.815 | V9: 2475.01 | W9: 5502.17 | X9: 146 | Y9: 1393.0162 | Z9: 95.03 | AA9: 527.99 | AB9: 2017.34 | AC9: 71 | AD9: 2577.7671 | AE9: 292.74 | AF9: 876.24 | AG9: 3846.58 | AH9: 51 | AI9: 1974.2677 | AJ9: 139.82 | AK9: 566.87 | AL9: 2575.97 | AM9: 53 | AN9: 2486.4193 | AO9: 313.195 | AP9: 1003.55 | AQ9: 3139.4 | AR9: 45 | AS9: 2909.3465 | AT9: 94.225 | AU9: 846.68 | AV9: 3277.905 | AW9: 62
A10: AF | B10: BASE-CEMENT TREATED | C10: CUYD | D10: 3453.363491 | E10: 3453.3638 | F10: 1358.265 | G10: 3565.8 | H10: 5281.39 | I10: 13 | T10: 3453.3638 | U10: 1358.265 | V10: 3565.8 | W10: 5281.39 | X10: 13 | AD10: 8009.76 | AE10: 8009.76 | AF10: 8009.76 | AG10: 8009.76 | AH10: 1 | AI10: 6114.81 | AJ10: 6114.81 | AK10: 6114.81 | AL10: 6114.81 | AM10: 1 | AN10: 2737.5089 | AO10: 1084.91 | AP10: 2069.55 | AQ10: 4585 | AR10: 9 | AS10: 3065.79 | AT10: 2565.78 | AU10: 3065.79 | AV10: 3565.8 | AW10: 2
A11: AG | B11: DRAINAGE PIPE (<= 24 IN) | C11: LNFT | D11: 95.23363221 | E11: 97.205376 | F11: 61.625 | G11: 88.17 | H11: 112.23 | I11: 173 | J11: 98.09625 | K11: 44.5675 | L11: 78.29 | M11: 122.9825 | N11: 24 | O11: 73.287027 | P11: 41.5225 | Q11: 63.9 | R11: 102.125 | S11: 74 | T11: 111.5136 | U11: 79.4 | V11: 100.84 | W11: 127.825 | X11: 125 | Y11: 116.456 | Z11: 75.52 | AA11: 103.105 | AB11: 136.215 | AC11: 40 | AD11: 99.343784 | AE11: 47.135 | AF11: 96.46 | AG11: 134.075 | AH11: 37 | AI11: 81.049787 | AJ11: 55 | AK11: 70 | AL11: 101.92 | AM11: 47 | AN11: 94.9075 | AO11: 76.3925 | AP11: 90.6 | AQ11: 103.57 | AR11: 28 | AS11: 92.433043 | AT11: 56.345 | AU11: 87.9 | AV11: 128.9625 | AW11: 46
A12: AH | B12: DRAINAGE PIPE (> 24 IN) | C12: LNFT | D12: 91.07711595 | E12: 88.7858 | F12: 58.33 | G12: 72.8 | H12: 116.3525 | I12: 100 | J12: 115.43 | K12: 29.45 | L12: 87.93 | M12: 189.68 | N12: 11 | O12: 86.213043 | P12: 39.04 | Q12: 63.33 | R12: 107 | S12: 23 | T12: 92.754556 | U12: 60.295 | V12: 78.94 | W12: 122.1875 | X12: 90 | Y12: 103.35143 | Z12: 63.785 | AA12: 91.86 | AB12: 136.21 | AC12: 21 | AD12: 99.432273 | AE12: 45.695 | AF12: 72.645 | AG12: 131.8325 | AH12: 22 | AI12: 66.116667 | AJ12: 37.53 | AK12: 61.035 | AL12: 91.8425 | AM12: 18 | AN12: 90.305 | AO12: 60.6925 | AP12: 74.91 | AQ12: 126.75 | AR12: 24 | AS12: 87.618148 | AT12: 59.11 | AU12: 78 | AV12: 108 | AW12: 27
A13: AI | B13: RCB | C13: LNFT | D13: 95.32302275 | E13: 98.91 | F13: 48 | G13: 69.015 | H13: 143.125 | I13: 26 | J13: 74.01 | K13: 18 | L13: 60 | M13: 144.03 | N13: 3 | O13: 97.0875 | P13: 42.375 | Q13: 55.5 | R13: 184.6 | S13: 8 | T13: 96.047143 | U13: 51 | V13: 72 | W13: 139 | X13: 21 | Y13: 54.8 | Z13: 48 | AA13: 54.8 | AB13: 61.6 | AC13: 2 | AD13: 112.43583 | AE13: 52.75 | AF13: 91.415 | AG13: 159.925 | AH13: 12 | AI13: 39.5 | AJ13: 22.5 | AK13: 40 | AL13: 56 | AM13: 4 | AN13: 96 | AO13: 54 | AP13: 102 | AQ13: 132 | AR13: 3 | AS13: 106.40429 | AT13: 36 | AU13: 66.03 | AV13: 200 | AW13: 7
A14: AJ | B14: SSPP | C14: LNFT | D14: 65.5 | E14: 65.5 | F14: 19 | G14: 54 | H14: 123.5 | I14: 4 | O14: 54 | P14: 22 | Q14: 54 | R14: 86 | S14: 2 | T14: 77 | U14: 18 | V14: 77 | W14: 136 | X14: 2 | AN14: 80 | AO14: 18 | AP14: 86 | AQ14: 136 | AR14: 3 | AS14: 22 | AT14: 22 | AU14: 22 | AV14: 22 | AW14: 1
A15: AK | B15: RIPRAP | C15: CUYD | D15: 136.2533801 | E15: 145.31178 | F15: 26.79 | G15: 105.31 | H15: 211.315 | I15: 129 | J15: 66.703333 | K15: 23.5375 | L15: 40.72 | M15: 95.8 | N15: 12 | O15: 142.6388 | P15: 25.9 | Q15: 112.45 | R15: 205.8075 | S15: 50 | T15: 133.96355 | U15: 24.79 | V15: 92.67 | W15: 207.605 | X15: 93 | Y15: 147.53615 | Z15: 27.5075 | AA15: 93.28 | AB15: 177.425 | AC15: 26 | AD15: 117.61609 | AE15: 25 | AF15: 101.53 | AG15: 191.56 | AH15: 23 | AI15: 129.47148 | AJ15: 21.54 | AK15: 81.12 | AL15: 209.37 | AM15: 27 | AN15: 179.10036 | AO15: 61.4075 | AP15: 138.2 | AQ15: 287.1925 | AR15: 28 | AS15: 116.21789 | AT15: 18.3775 | AU15: 72.16 | AV15: 203.1825 | AW15: 38
A16: AL | B16: COLD MILLING | C16: SQYD | D16: 15077.22791 | E16: 16636.247 | F16: 1977.775 | G16: 9448.61 | H16: 22841.428 | I16: 206 | J16: 7854.8978 | K16: 1038.4 | L16: 5235.37 | M16: 8759.925 | N16: 37 | O16: 12997.163 | P16: 1706.7075 | Q16: 6244.17 | R16: 15639.133 | S16: 134 | T16: 17750.486 | U16: 2542.38 | V16: 10945.33 | W16: 23589.53 | X16: 113 | Y16: 12389.1 | Z16: 2122.1825 | AA16: 5205.8 | AB16: 17020.295 | AC16: 48 | AD16: 20746.392 | AE16: 4004.27 | AF16: 13649.565 | AG16: 28342.363 | AH16: 68 | AI16: 11075.428 | AJ16: 746.5475 | AK16: 3212.785 | AL16: 8626.685 | AM16: 52 | AN16: 12372.07 | AO16: 1252.615 | AP16: 8498.5 | AQ16: 15155.45 | AR16: 33 | AS16: 16473.758 | AT16: 4672.89 | AU16: 15014.585 | AV16: 23143.333 | AW16: 46
A17: AM | B17: PLANT MIX SURFACING | C17: TON | D17: 1508.934922 | E17: 1700.7114 | F17: 477.75 | G17: 1257.5 | H17: 2476.75 | I17: 350 | J17: 669.61111 | K17: 160.5 | L17: 421.5 | M17: 749.75 | N17: 54 | O17: 1013.1697 | P17: 141 | Q17: 532 | R17: 1322.5 | S17: 218 | T17: 2173.5156 | U17: 994 | V17: 1847 | W17: 2781 | X17: 192 | Y17: 1679.9213 | Z17: 193.5 | AA17: 948 | AB17: 2575 | AC17: 89 | AD17: 1793.5851 | AE17: 534.5 | AF17: 1297.5 | AG17: 2466 | AH17: 94 | AI17: 1227.3377 | AJ17: 219.5 | AK17: 628 | AL17: 2087.5 | AM17: 77 | AN17: 1565.2742 | AO17: 461 | AP17: 1608 | AQ17: 2346.25 | AR17: 62 | AS17: 1468.8621 | AT17: 522 | AU17: 1151 | AV17: 1928 | AW17: 87
A18: AN | B18: COVER | C18: SQYD | D18: 83884.18652 | E18: 87218.526 | F18: 19662.6 | G18: 62965.94 | H18: 126711.6 | I18: 326 | J18: 45297.154 | K18: 7055.575 | L18: 14070.95 | M18: 34332.688 | N18: 38 | O18: 73085.004 | P18: 8801.95 | Q18: 39143.2 | R18: 117432.65 | S18: 191 | T18: 92000.465 | U18: 30671.075 | V18: 67959.12 | W18: 123105.76 | X18: 178 | Y18: 101889.89 | Z18: 23538.755 | AA18: 80329.87 | AB18: 141482.25 | AC18: 81 | AD18: 94331.091 | AE18: 24195.28 | AF18: 57466.7 | AG18: 133790 | AH18: 87 | AI18: 72923.562 | AJ18: 8632.2 | AK18: 30227.6 | AL18: 117820.97 | AM18: 81 | AN18: 71763.449 | AO18: 35281.055 | AP18: 62566.125 | AQ18: 91185.863 | AR18: 48 | AS18: 63577.159 | AT18: 13753.59 | AU18: 39429 | AV18: 91045.3 | AW18: 71
A19: AO | B19: MICROSURFACING | C19: TON | D19: 464.5953972 | E19: 483.50545 | F19: 420.87 | G19: 450.67 | H19: 565.68 | I19: 11 | O19: 483.50545 | P19: 420.87 | Q19: 450.67 | R19: 565.68 | S19: 11 | Y19: 456.17125 | Z19: 382.0275 | AA19: 436.78 | AB19: 507.0325 | AC19: 8 | AI19: 565.68 | AJ19: 565.68 | AK19: 565.68 | AL19: 565.68 | AM19: 1 | AS19: 551.755 | AT19: 434.88 | AU19: 551.755 | AV19: 668.63 | AW19: 2
A20: AP | B20: CRACK SEALING | C20: LB | D20: 6345.975029 | E20: 6324.378 | F20: 3166.67 | G20: 5232.78 | H20: 8395 | I20: 35 | J20: 4157.88 | K20: 1051 | L20: 3625 | M20: 6875 | N20: 7 | O20: 6030.73 | P20: 2958.335 | Q20: 5232.78 | R20: 7375 | S20: 37 | T20: 5464.276 | U20: 2085 | V20: 4830 | W20: 9160.69 | X20: 5 | Y20: 2858.7925 | Z20: 1343.75 | AA20: 2770.835 | AB20: 4461.7925 | AC20: 4 | AD20: 5108.59 | AE20: 2785 | AF20: 5505 | AG20: 6753 | AH20: 13 | AI20: 7163.4168 | AJ20: 3482.9175 | AK20: 6038.96 | AL20: 8937.5 | AM20: 22 | AN20: 8671.38 | AO20: 8671.38 | AP20: 8671.38 | AQ20: 8671.38 | AR20: 1 | AS20: 3172.5 | AT20: 1515 | AU20: 3172.5 | AV20: 4830 | AW20: 2
A21: AQ | B21: PCCP | C21: SQYD | D21: 568.3882639 | E21: 924.4 | F21: 481.585 | G21: 1130.02 | H21: 1161.595 | I21: 4 | J21: 431.72143 | K21: 149.34 | L21: 394.9 | M21: 518.23 | N21: 7 | O21: 805.81667 | P21: 149.34 | Q21: 1096.33 | R21: 1171.78 | S21: 3 | T21: 537.775 | U21: 272.1225 | V21: 447.5 | W21: 976.3075 | X21: 8 | Y21: 1132.37 | Z21: 1096.33 | AA21: 1129 | AB21: 1171.78 | AC21: 3 | AD21: 1131.04 | AE21: 1131.04 | AF21: 1131.04 | AG21: 1131.04 | AH21: 1 | AI21: 370.744 | AJ21: 220.245 | AK21: 394.9 | AL21: 509.165 | AM21: 5 | AN21: 265.78 | AO21: 265.78 | AP21: 265.78 | AQ21: 265.78 | AR21: 1 | AS21: 72 | AT21: 72 | AU21: 72 | AV21: 72 | AW21: 1
A22: AR | B22: CURB AND GUTTER | C22: LNFT | D22: 408.3892593 | E22: 479.84825 | F22: 162.84 | G22: 288.5 | H22: 672.26 | I22: 57 | J22: 336.53073 | K22: 111.575 | L22: 256.12 | M22: 524.465 | N22: 41 | O22: 257.12825 | P22: 104.48 | Q22: 168.18 | R22: 310.5 | S22: 63 | T22: 667.995 | U22: 424.46 | V22: 542.365 | W22: 923.8 | X22: 40 | Y22: 303.20679 | Z22: 106.0625 | AA22: 243.625 | AB22: 430.2 | AC22: 28 | AD22: 504.475 | AE22: 99.51 | AF22: 373.08 | AG22: 880.0025 | AH22: 18 | AI22: 424.67 | AJ22: 146.25 | AK22: 223.15 | AL22: 678.1775 | AM22: 26 | AN22: 416.683 | AO22: 112.0425 | AP22: 243 | AQ22: 660.1125 | AR22: 10 | AS22: 481.3675 | AT22: 146.115 | AU22: 466.18 | AV22: 757.05 | AW22: 20
A23: AS | B23: SIDEWALK | C23: SQYD | D23: 246.4866934 | E23: 251.06113 | F23: 68.2625 | G23: 128.87 | H23: 315.1325 | I23: 62 | J23: 239.16975 | K23: 56.8875 | L23: 197.385 | M23: 297.8025 | N23: 40 | O23: 196.26754 | P23: 52.31 | Q23: 92.3 | R23: 225.2 | S23: 69 | T23: 319.15973 | U23: 122.1 | V23: 245.66 | W23: 454.12 | X23: 37 | Y23: 218.39897 | Z23: 41.97 | AA23: 112.1 | AB23: 284.365 | AC23: 29 | AD23: 366.00579 | AE23: 76.7 | AF23: 145.25 | AG23: 493.35 | AH23: 19 | AI23: 217.52074 | AJ23: 59.58 | AK23: 210.64 | AL23: 291.3 | AM23: 27 | AN23: 200.64667 | AO23: 62.655 | AP23: 146.75 | AQ23: 332.995 | AR23: 9 | AS23: 197.47714 | AT23: 59.485 | AU23: 107.77 | AV23: 184.42 | AW23: 21
A24: AT | B24: FARM FENCE | C24: LNFT | D24: 2205.871401 | E24: 2332.6703 | F24: 552.935 | G24: 1490 | H24: 2511.5325 | I24: 146 | J24: 699.28333 | K24: 379.875 | L24: 630.7 | M24: 1031.96 | N24: 6 | O24: 1139.0453 | P24: 329.875 | Q24: 481.33 | R24: 1652.5 | S24: 57 | T24: 2934.9811 | U24: 1156.465 | V24: 1955.99 | W24: 4430.8625 | X24: 96 | Y24: 1315.7845 | Z24: 739.355 | AA24: 1161.76 | AB24: 1978.35 | AC24: 20 | AD24: 1856.5031 | AE24: 423.725 | AF24: 1418.475 | AG24: 2413.5525 | AH24: 26 | AI24: 1745.3587 | AJ24: 531.4175 | AK24: 1415.665 | AL24: 2207.1925 | AM24: 30 | AN24: 4190.2803 | AO24: 654 | AP24: 2508.83 | AQ24: 6928.51 | AR24: 35 | AS24: 1739.9626 | AT24: 377.8225 | AU24: 1346.245 | AV24: 2319.7525 | AW24: 42
A25: AU | B25: GUARDRAIL STEEL | C25: LNFT | D25: 679.5060407 | E25: 680.69387 | F25: 146 | G25: 450 | H25: 912.5 | I25: 199 | J25: 374.09615 | K25: 155.165 | L25: 252.6 | M25: 533.625 | N25: 13 | O25: 647.68935 | P25: 120.5 | Q25: 475 | R25: 968.75 | S25: 92 | T25: 674.50702 | U25: 162.575 | V25: 406.25 | W25: 890.8125 | X25: 124 | Y25: 856.29649 | Z25: 216.155 | AA25: 607.3 | AB25: 1275.25 | AC25: 57 | AD25: 734.6325 | AE25: 128.5725 | AF25: 433.765 | AG25: 968.75 | AH25: 52 | AI25: 484.73605 | AJ25: 84.375 | AK25: 310.665 | AL25: 663.95 | AM25: 38 | AN25: 483.18143 | AO25: 81 | AP25: 174 | AQ25: 756 | AR25: 21 | AS25: 587.36 | AT25: 181.25 | AU25: 378 | AV25: 817.79 | AW25: 47
A26: AV | B26: CONCRETE BARRIER RAIL | C26: EACH | D26: 57.5346688 | E26: 57.732759 | F26: 16 | G26: 25 | H26: 97.885 | I26: 29 | J26: 67.5 | K26: 6 | L26: 7 | M26: 189.5 | N26: 4 | O26: 47.650909 | P26: 16.33 | Q26: 25 | R26: 44 | S26: 11 | T26: 64.549545 | U26: 8 | V26: 23.75 | W26: 118.945 | X26: 22 | Y26: 63.586111 | Z26: 12.25 | AA26: 22.5 | AB26: 117.7225 | AC26: 18 | AD26: 50.7875 | AE26: 18.4975 | AF26: 35.5 | AG26: 61.7525 | AH26: 8 | AI26: 85.866667 | AJ26: 22.5 | AK26: 81.6 | AL26: 153.5 | AM26: 3 | AS26: 33.95 | AT26: 6 | AU26: 7 | AV26: 88.85 | AW26: 4
A27: AW | B27: SEEDING | C27: ACRE | D27: 12.23642484 | E27: 13.140131 | F27: 2.975 | G27: 8.43 | H27: 19.43 | I27: 153 | J27: 7.9475 | K27: 0.835 | L27: 2.35 | M27: 17.8575 | N27: 8 | O27: 4.2791071 | P27: 1.2275 | Q27: 2.91 | R27: 6.5125 | S27: 56 | T27: 17.297664 | U27: 5.75 | V27: 12.84 | W27: 25.66 | X27: 107 | Y27: 11.127692 | Z27: 3.59 | AA27: 6.345 | AB27: 18.575 | AC27: 26 | AD27: 12.377647 | AE27: 2.6975 | AF27: 9.455 | AG27: 18.6625 | AH27: 34 | AI27: 8.5821622 | AJ27: 2.265 | AK27: 4.22 | AL27: 13.125 | AM27: 37 | AN27: 18.111333 | AO27: 2.0325 | AP27: 12.595 | AQ27: 33.82 | AR27: 30 | AS27: 14.428889 | AT27: 4.135 | AU27: 11.09 | AV27: 19.895 | AW27: 36
A28: AX | B28: REINFORCING STEEL | C28: LB | D28: 13995.35078 | E28: 14190.582 | F28: 5326.2 | G28: 10832.83 | H28: 18586.33 | I28: 67 | J28: 17632.89 | K28: 4125.18 | L28: 17322.27 | M28: 31295.91 | N28: 5 | O28: 7340.5689 | P28: 1731.615 | Q28: 4847.125 | R28: 8918.0475 | S28: 18 | T28: 16792.652 | U28: 7693.67 | V28: 12859.555 | W28: 19913.403 | X28: 54 | Y28: 19069.347 | Z28: 7825.86 | AA28: 16278.93 | AB28: 21312.67 | AC28: 15 | AD28: 16068.92 | AE28: 6149.9575 | AF28: 12117.685 | AG28: 19360.888 | AH28: 16 | AI28: 11878.209 | AJ28: 870.3175 | AK28: 7893.175 | AL28: 20181.7825 | AM28: 14 | AN28: 11991.526 | AO28: 6099.28 | AP28: 10832.83 | AQ28: 15054.7 | AR28: 13 | AS28: 10592.803 | AT28: 4720.12 | AU28: 8292.96 | AV28: 15762.725 | AW28: 13
A29: AY | B29: DRILLED SHAFT | C29: LNFT | D29: 102.5616162
A30: AZ | B30: CONCRETE-CLASS DECK | C30: CUYD | D30: 72.62144162 | E30: 74.679444 | F30: 43.22 | G30: 61.56 | H30: 87.2525 | I30: 54 | J30: 55.9125 | K30: 13.4175 | L30: 53.52 | M30: 100.8 | N30: 4 | O30: 48.99375 | P30: 38.2725 | Q30: 50.235 | R30: 59.3125 | S30: 8 | T30: 77.2878 | U30: 43.22 | V30: 69.665 | W30: 97.5175 | X30: 50 | Y30: 75.302 | Z30: 39.72 | AA30: 67.32 | AB30: 117.14 | AC30: 15 | AD30: 77.758462 | AE30: 55.535 | AF30: 60.55 | AG30: 92.54 | AH30: 13 | AI30: 54.334444 | AJ30: 27.895 | AK30: 54.54 | AL30: 84.925 | AM30: 9 | AN30: 82.89 | AO30: 39.15 | AP30: 72.29 | AQ30: 89.465 | AR30: 9 | AS30: 69.906364 | AT30: 39.65 | AU30: 45.87 | AV30: 78.46 | AW30: 11
A31: BA | B31: CLASS A BRIDGE DECK REPAIR | C31: SQYD | D31: 14.47450514 | E31: 13.685714 | F31: 4.57 | G31: 7.485 | H31: 16.4075 | I31: 42 | J31: 19.823333 | K31: 9.4 | L31: 12.97 | M31: 37.1 | N31: 3 | O31: 14.193077 | P31: 4.9075 | Q31: 9.97 | R31: 18.91 | S31: 26 | T31: 13.960526 | U31: 4.65 | V31: 7.67 | W31: 15.6 | X31: 19 | Y31: 25.124 | Z31: 6.865 | AA31: 12.97 | AB31: 49.46 | AC31: 5 | AD31: 13.0748 | AE31: 6 | AF31: 9.93 | AG31: 15.165 | AH31: 25 | AI31: 15.6 | AJ31: 3.45 | AK31: 11.2 | AL31: 32.15 | AM31: 4 | AN31: 10.728333 | AO31: 0.7875 | AP31: 2.49 | AQ31: 27.07 | AR31: 6 | AS31: 11.002 | AT31: 3.445 | AU31: 6.85 | AV31: 20.635 | AW31: 5
A32: BB | B32: CONCRETE BARRIER RAIL-BRIDGE | C32: LNFT | D32: 222.1675191 | E32: 227.87125 | F32: 83.0025 | G32: 133.165 | H32: 253.4925 | I32: 24 | J32: 187.9425 | K32: 121.845 | L32: 182.89 | M32: 259.0925 | N32: 4 | O32: 141 | P32: 86.8 | Q32: 141.05 | R32: 195.15 | S32: 4 | T32: 235.695 | U32: 87.97 | V32: 139.055 | W32: 268.4925 | X32: 24 | Y32: 234.43364 | Z32: 88.09 | AA32: 128.83 | AB32: 251.67 | AC32: 11 | AD32: 261.36286 | AE32: 90.55 | AF32: 144.6 | AG32: 346.44 | AH32: 7 | AI32: 89.0525 | AJ32: 70.0425 | AK32: 74.99 | AL32: 122.125 | AM32: 4 | AN32: 118.185 | AO32: 69.9 | AP32: 118.185 | AQ32: 166.47 | AR32: 2 | AS32: 315.5 | AT32: 212 | AU32: 216.5 | AV32: 518 | AW32: 3
A33: BC | B33: CONCRETE-CLASS OVERLAY | C33: CUYD | D33: 31.44267857
A34: BD | B34: BRIDGE DECK MILLING | C34: SQYD | D34: 472.5310967 | E34: 489.07167 | F34: 230.66 | G34: 462.49 | H34: 715.2175 | I34: 6 | O34: 572.53 | P34: 261.7875 | Q34: 583.85 | R34: 871.9525 | S34: 4 | T34: 322.155 | U34: 250.18 | V34: 322.155 | W34: 394.13 | X34: 2 | AD34: 636.85 | AE34: 636.85 | AF34: 636.85 | AG34: 636.85 | AH34: 1 | AI34: 272.13667 | AJ34: 172.1 | AK34: 250.18 | AL34: 394.13 | AM34: 3 | AS34: 740.585 | AT34: 530.85 | AU34: 740.585 | AV34: 950.32 | AW34: 2
A35: BE | B35: REVISE BRIDGE CONCRETE BARRIER | C35: LNFT | D35: 199.6882552 | E35: 203.18487 | F35: 62.5 | G35: 156.65 | H35: 250.3 | I35: 39 | J35: 9.4 | K35: 3 | L35: 9.4 | M35: 15.8 | N35: 2 | O35: 139.36833 | P35: 50.2925 | Q35: 135 | R35: 181.785 | S35: 18 | T35: 236.27739 | U35: 27.5 | V35: 161.58 | W35: 262.63 | X35: 23 | Y35: 172.86 | Z35: 110 | AA35: 161.58 | AB35: 247 | AC35: 3 | AD35: 168.59 | AE35: 36.735 | AF35: 146 | AG35: 236.23 | AH35: 25 | AI35: 220 | AJ35: 220 | AK35: 220 | AL35: 220 | AM35: 1 | AN35: 732.375 | AO35: 392 | AP35: 732.375 | AQ35: 1072.75 | AR35: 2 | AS35: 152.493 | AT35: 10.3725 | AU35: 150.5 | AV35: 278.85 | AW35: 10
I37: NOTE: | J37: Mean: average production rate of historical projects.
J38: Q1: 25% of historical projects have production rates lower than Q1.
J39: Median: 50% of historical projects have production rates lower than Median.
J40: Q3: 75% of historical projects have production rates lower than Q3.
J41: N: number of historical projects used to calculate statistical measures

Sheet Regression Coefficients
C1: INTERCEPT | D1: QUANTITY | E1: PRJCT_TTL_AMT | F1: NEW_WORK_TYPE | AD1: DISTRICT | AI1: BUDGET | AK1: AREA | AM1: WINTER | AO1: NBR_PECS | AP1: NBR_USED | AQ1: USED_HRS | AR1: NBR_SUPRVSR | AS1: OTH_WRKR | AT1: WRKD_HRS
A2: No | B2: Production Rate Items | F2: 110 | G2: 111 | H2: 120 | I2: 141 | J2: 150 | K2: 160 | L2: 170 | M2: 183 | N2: 185 | O2: 210 | P2: 230 | Q2: 232 | R2: 310 | S2: 311 | T2: 312 | U2: 313 | V2: 410 | W2: 411 | X2: 412 | Y2: 510 | Z2: 520 | AA2: 620 | AB2: 650 | AC2: 710 | AD2: 1 | AE2: 2 | AF2: 3 | AG2: 4 | AH2: 5 | AI2: 0 | AJ2: 1 | AK2: 0 | AL2: 1 | AM2: 0 | AN2: 1
A3: 1 | B3: TOPSOIL-SALVAGING AND PLACING | C3: -283.1214 | D3: 0.1417816 | F3: 1166.1207 | G3: 735.67628 | H3: 2995.4866 | I3: 1199.9125 | J3: 1620.0767 | K3: 1541.4827 | L3: 1890 | M3: 4569.0322 | N3: 1890 | O3: 1068.3311 | P3: 1654.4627 | Q3: 714.13551 | R3: 1550.4479 | U3: 1138.6669 | V3: 1890 | W3: 1890 | Y3: 4064.5464 | Z3: 1890 | AA3: 2462.1942 | AB3: 3759.7467 | AC3: 0 | AD3: -1462.137 | AE3: -425.8318 | AF3: -749.5676 | AG3: -1353.816 | AH3: 0 | AT3: 5.4399313
A4: 2 | B4: EXCAVATION-UNCLASSIFIED | C4: 4570.2855 | D4: 0.0273722 | AI4: -3452.466 | AJ4: 0 | AO4: 144.73847
A5: 3 | B5: SPECIAL BORROW | C5: 1176.9074 | D5: 0.0728994 | AO5: 146.7171 | AP5: -150.3816 | AR5: -619.3056
A6: 4 | B6: EXCAVATION-STREET | C6: 365.42328 | D6: 0.1101502
A7: 5 | B7: CRUSHED AGGREGATE COURSE | C7: 70.92027 | D7: 0.1161491 | AO7: 35.898125
A8: 6 | B8: BASE-CEMENT TREATED
A9: 7 | B9: DRAINAGE PIPE (<= 24 IN) | C9: 58.598999 | D9: 0.0119933 | E9: 3.5278e-06 | F9: 19.958264 | G9: 67.070327 | H9: 29.877801 | I9: 49.863309 | J9: 25.765767 | K9: -3.073472 | L9: -54.71657 | M9: 29.573676 | N9: 29 | O9: 31.675952 | P9: -19.58825 | Q9: 200.03345 | R9: 2.6000596 | U9: 86.4612 | V9: -1.465798 | W9: 29 | Y9: 29 | Z9: 29 | AA9: 4.1061992 | AC9: 0 | AP9: -0.901879
A10: 8 | B10: DRAINAGE PIPE (> 24 IN) | C10: 74.67358 | D10: 0.0220256 | E10: -1.772e-06 | AR10: 6.637878
A11: 9 | B11: RCB | C11: 83.038774 | D11: 0.2018852 | E11: -6.018e-06
A12: 10 | B12: SSPP
A13: 11 | B13: RIPRAP | C13: 61.070339 | D13: 0.1005572 | E13: -5.215e-06 | F13: 12.952371 | G13: -37 | H13: -13.26084 | I13: 16.228727 | J13: 28.796123 | K13: 18.553635 | L13: -37 | M13: -37 | N13: -37 | O13: 58.017698 | P13: -34.75768 | Q13: -542.9388 | R13: 95.373512 | V13: -46.48612 | W13: -37 | Y13: -37 | Z13: -37 | AA13: -37 | AB13: 0
A14: 12 | B14: COLD MILLING | C14: 9287.3363 | D14: 0.0902425 | AR14: -4120.669 | AT14: 72.025936
A15: 13 | B15: PLANT MIX SURFACING | C15: -324.739 | D15: 0.0292173 | F15: 253.64999 | G15: -696.7646 | H15: 390.38214 | I15: -454.096 | J15: 514.77261 | K15: 921.72799 | L15: 49.771987 | M15: -1.295678 | N15: -273 | O15: -116.7811 | P15: -1004.901 | Q15: -482.2526 | R15: -548.4031 | S15: -369.3875 | U15: -118.9509 | V15: -859.423 | W15: -974.1801 | Y15: -273 | Z15: -273 | AA15: -474.9538 | AB15: -1222.411 | AC15: 0 | AD15: 969.72214 | AE15: 379.55282 | AF15: 379.04338 | AG15: 181.83039 | AH15: 0 | AK15: 734.72578 | AL15: 0 | AO15: 53.024048 | AP15: -36.7464 | AS15: -33.24026
A16: 14 | B16: COVER | C16: -8221.184 | D16: 0.3141467 | F16: 17704.259 | G16: 3640.0902 | H16: 3382.8577 | I16: 12058 | J16: 42731.304 | K16: 55085.026 | L16: 45502.551 | M16: 33520.798 | N16: 13140.837 | O16: 6183.6624 | P16: -8811.086 | Q16: 4453.4327 | R16: -1183.863 | S16: -3060.331 | U16: -1501.63 | V16: -20986.51 | W16: 15185.393 | Y16: 12058 | Z16: 12058 | AA16: 12058 | AC16: 0 | AD16: 36992.346 | AE16: 14092.174 | AF16: 10264.444 | AG16: -4385.95 | AH16: 0 | AQ16: -257.7256 | AT16: 153.37341
A17: 15 | B17: MICROSURFACING | C17: 252.35387 | D17: 0.0957215
A18: 16 | B18: CRACK SEALING | C18: 12712.243 | D18: 0.0651414 | F18: -7717 | G18: -7717 | I18: -7717 | J18: -10443.34 | K18: -10482.09 | L18: -7717 | M18: -9942.722 | N18: 0 | O18: -7717 | P18: -7717 | Q18: -7717 | R18: -7717 | V18: -7717 | W18: -7717 | Y18: -7717 | Z18: -7717 | AA18: -7717 | AT18: 26.995593
A19: 17 | B19: PCCP | C19: 366.74127 | D19: 0.0721504
A20: 18 | B20: CURB AND GUTTER | C20: 452.60174 | D20: 0.0259045 | AD20: -49.42456 | AE20: 181.70706 | AF20: 90.798492 | AG20: 38.965225 | AH20: 0 | AI20: -286.6476 | AJ20: 0
A21: 19 | B21: SIDEWALK | C21: -66.34135 | D21: 0.1138446 | AI21: 160.77272 | AJ21: 0 | AO21: -7.087087 | AQ21: 3.0386094
A22: 20 | B22: FARM FENCE | C22: 1682.3873 | D22: 0.0520548 | F22: -915.2694 | G22: -1012 | H22: -1653.297 | I22: -2564.242 | J22: -733.9872 | K22: 696.97543 | L22: -1012 | M22: -1012 | N22: -1012 | O22: -1934.963 | P22: -2190.019 | Q22: -1329.854 | R22: -2122.625 | V22: -1012 | W22: -1012 | Y22: -1012 | Z22: -1012 | AA22: 1613.6474 | AB22: 0 | AD22: -193.1352 | AE22: 649.82343 | AF22: 1039.5424 | AG22: 2173.877 | AH22: 0
A23: 21 | B23: GUARDRAIL STEEL | C23: 410.47635 | D23: 0.0621586 | F23: -66.55839 | G23: 113 | H23: 1136.962 | I23: -81.76293 | J23: -98.55457 | K23: 95.763933 | L23: 781.61221 | M23: -84.03551 | N23: 113 | O23: -205.5497 | P23: -192.0946 | Q23: 487.38937 | R23: 348.80593 | U23: -351.3923 | V23: 113 | W23: -194.5296 | Y23: 113 | Z23: 113 | AA23: 113 | AC23: 0
A24: 22 | B24: CONCRETE BARRIER RAIL | C24: -78.00615 | F24: -1.881957 | G24: 81 | I24: 81 | J24: 103.94783 | K24: 117.49888 | L24: 181.46689 | M24: 81 | N24: 81 | O24: 84.220941 | P24: 81 | Q24: 81 | R24: 0 | V24: 81 | W24: 81 | Y24: 81 | Z24: 81 | AA24: 81 | AD24: 158.5926 | AE24: 147.56348 | AF24: -124.7064 | AG24: 45 | AH24: 0 | AK24: -125.8427 | AL24: 0 | AO24: 14.263036 | AQ24: 1.575004 | AR24: -40.67492 | AS24: -10.70621
A25: 23 | B25: SEEDING | C25: 4.2263686 | D25: 0.2309651
A26: 24 | B26: REINFORCING STEEL | C26: -3937.055 | E26: 0.0011207 | F26: 9890.763 | G26: 21321 | H26: 27384.874 | I26: 21321 | J26: 15351.395 | K26: 8007.6229 | L26: 21321 | M26: 21321 | N26: 21321 | O26: 26779.091 | P26: 31950.656 | Q26: 51200.675 | R26: 0 | V26: 21321 | W26: 21321 | Y26: 21321 | Z26: 21321 | AA26: 21321 | AD26: 1867.0617 | AE26: 3290.2446 | AF26: -4939.691 | AG26: -6895.454 | AH26: 0 | AI26: -13856.14 | AJ26: 0 | AO26: 853.83566 | AP26: -922.4828 | AS26: -1030.022
A27: 25 | B27: DRILLED SHAFT
A28: 26 | B28: CONCRETE-CLASS DECK | C28: 76.784394 | F28: -9.918873 | G28: -4 | H28: 42.80883 | I28: -4 | J28: -4 | K28: -116.3316 | L28: -4 | M28: -4 | N28: -4 | O28: 38.916434 | P28: 43.814041 | Q28: -24.62059 | R28: 0 | V28: -4 | W28: -4 | Y28: -4 | Z28: -4 | AA28: -4 | AI28: -69.93885 | AJ28: 0 | AO28: -2.698027 | AQ28: 0.5866878 | AS28: 5.9952108 | AT28: -0.779019
A29: 27 | B29: CLASS A BRIDGE DECK REPAIR | C29: -79.66833 | D29: 0.0484037 | F29: 43 | G29: 43 | I29: 43 | J29: 43.170115 | K29: 44.41841 | L29: 43 | M29: 37.730725 | N29: 43 | O29: 43 | P29: 98.867531 | Q29: 36.329844 | R29: 0 | V29: 43 | W29: 43 | Y29: 43 | Z29: 43 | AA29: 43 | AD29: 46.669453 | AE29: 13.225499 | AF29: 10.71769 | AG29: 5.8726092 | AH29: 0 | AK29: 31.058479 | AL29: 0 | AP29: 0.7761454
A30: 28 | B30: CONCRETE BARRIER RAIL-BRIDGE | C30: -2473.268 | D30: 0.3798188 | F30: 2486.9636 | G30: 1244 | I30: 1244 | J30: 1244 | K30: 76.476721 | L30: 1244 | M30: 1244 | N30: 1244 | O30: 2861.0585 | P30: 793.50771 | Q30: 0 | R30: 1244 | V30: 1244 | W30: 1244 | Y30: 1244 | Z30: 1244 | AA30: 1244 | AD30: -453.9514 | AE30: -358.2707 | AF30: -1.057972 | AG30: 2382.8095 | AH30: 0 | AI30: -557.0642 | AJ30: 0 | AM30: 472.23457 | AN30: 0 | AP30: -106.6217 | AQ30: 12.687307 | AR30: -277.0587 | AS30: 89.818391
A31: 29 | B31: CONCRETE-CLASS OVERLAY
A32: 30 | B32: BRIDGE DECK MILLING | C32: 282.05314 | D32: 0.0689648
A33: 31 | B33: REVISE BRIDGE CONCRETE BARRIER | C33: -71.58776 | AD33: 22.143798 | AE33: 26.332202 | AF33: 198.92426 | AG33: 851.21038 | AH33: 0 | AI33: 83.872009 | AJ33: 0 | AQ33: -1.791896 | AS33: 23.165874 | AT33: 2.5817967

Sheet Background
A1: SN | B1: PRODUCTION RATE ITEMS | C1: QUANTITY | D1: PRJCT_TTL_AMT | E1: NEW_WORK_TYPE | F1: DISTRICT | G1: BUDGET | H1: AREA | I1: WINTER | J1: NBR_PECS | K1: NBR_USED | L1: USED_HRS | M1: NBR_SUPRVSR | N1: OTH_WRKR | O1: WRKD_HRS | P1: SUM_1 | Q1: SUM_2 | R1: SUM_3 | S1: SUM_4 | T1: SUM_5 | U1: SUM | V1: Mean | W1: Q1 | X1: Median | Y1: Q3 | Z1: Min | AA1: Max | AB1: RAW 1 | AC1: RAW 2 | AD1: FINAL | AE1: Historical quantities | AG1: Examples
AB2: PRODUCTIVITY | AC2: PRODUCTIVITY | AD2: PRODUCTIVITY | AE2: Min | AF2: Max | AG2: Quantity
A3: AA | B3: ='Regression Coefficients'!B3 -> TOPSOIL-SALVAGING AND PLACING | C3: ='Production Rate Estimates'!D5 -> 0 | D3: =Coding!B42 -> 3000000 | E3: =Coding!F24 -> 110 | F3: =Coding!F5 -> 2 | G3: =Coding!F20 -> 1 | H3: =Coding!F12 -> 1 | I3: =Coding!F16 -> 1 | J3: 18.31155779 | K3: 12.19095477 | L3: 35.08542714 | M3: 1.113207547 | N3: 6.924528302 | O3: 31.77830189 | P3: ='Regression Coefficients'!C3+'Regression Coefficients'!D3*Background!C3+'Regression Coefficients'!E3*Background!D3 -> -283.1214 | Q3: =HLOOKUP(E3,'Regression Coefficients'!$F$2:$AC$33,1+MATCH(B3,'Regression Coefficients'!$B$3:$B$33,0),FALSE) -> 1166.1207 | R3: =IF(F3=1,'Regression Coefficients'!AD3,IF(F3=2,'Regression Coefficients'!AE3,IF(F3=3,'Regression Coefficients'!AF3,IF(F3=4,'Regression Coefficients'!AG3,'Regression Coefficients'!AH3)))) -> -425.8318 | S3: =IF(G3=0,'Regression Coefficients'!AI3,'Regression Coefficients'!AJ3)+IF(H3=0,'Regression Coefficients'!AK3,'Regression Coefficients'!AL3)+IF(I3=0,'Regression Coefficients'!AM3,'Regression Coefficients'!AN3) -> 0 | T3: =SUMPRODUCT('Regression Coefficients'!AO3:AT3,Background!J3:O3) -> 172.8717791 | U3: =P3+Q3+R3+S3+T3 -> 630.0392791 | V3: 2313.421118 | W3: 306.1905 | X3: 1267.230833 | Y3: 3071.395918 | Z3: 26.5 | AA3: 19255.07352 | AB3: =IF(U3<Z3,Z3,U3) -> 630.0392791 | AC3: =IF(AB3>AA3,AA3,AB3) -> 630.0392791 | AD3: =IF(C3<=0,"",AC3) ->  | AE3: 8 | AF3: 115530 | AG3: 65290.27901
A4: AB | B4: ='Regression Coefficients'!B4 -> EXCAVATION-UNCLASSIFIED | C4: ='Production Rate Estimates'!D6 -> 0 | D4: =$D$3 -> 3000000 | E4: =$E$3 -> 110 | F4: =$F$3 -> 2 | G4: =$G$3 -> 1 | H4: =$H$3 -> 1 | I4: =$I$3 -> 1 | J4: 19.45180723 | K4: 13.6746988 | L4: 36.69879518 | M4: 1.079545455 | N4: 7.840909091 | O4: 37.11363636 | P4: ='Regression Coefficients'!C4+'Regression Coefficients'!D4*Background!C4+'Regression Coefficients'!E4*Background!D4 -> 4570.2855 | Q4: =HLOOKUP(E4,'Regression Coefficients'!$F$2:$AC$33,1+MATCH(B4,'Regression Coefficients'!$B$3:$B$33,0),FALSE) -> 0 | R4: =IF(F4=1,'Regression Coefficients'!AD4,IF(F4=2,'Regression Coefficients'!AE4,IF(F4=3,'Regression Coefficients'!AF4,IF(F4=4,'Regression Coefficients'!AG4,'Regression Coefficients'!AH4)))) -> 0 | S4: =IF(G4=0,'Regression Coefficients'!AI4,'Regression Coefficients'!AJ4)+IF(H4=0,'Regression Coefficients'!AK4,'Regression Coefficients'!AL4)+IF(I4=0,'Regression Coefficients'!AM4,'Regression Coefficients'!AN4) -> 0 | T4: =SUMPRODUCT('Regression Coefficients'!AO4:AT4,Background!J4:O4) -> 2815.424817 | U4: =P4+Q4+R4+S4+T4 -> 7385.710317 | V4: 8874.346593 | W4: 940.6966667 | X4: 4950 | Y4: 12541.83894 | Z4: 17.14 | AA4: 43698 | AB4: =IF(U4<Z4,Z4,U4) -> 7385.710317 | AC4: =IF(AB4>AA4,AA4,AB4) -> 7385.710317 | AD4: =IF(C4<=0,"",AC4) ->  | AE4: 17 | AF4: 1193215 | AG4: 101898.4697
A5: AC | B5: ='Regression Coefficients'!B5 -> SPECIAL BORROW | C5: ='Production Rate Estimates'!D7 -> 0 | D5: =$D$3 -> 3000000 | E5: =$E$3 -> 110 | F5: =$F$3 -> 2 | G5: =$G$3 -> 1 | H5: =$H$3 -> 1 | I5: =$I$3 -> 1 | J5: 24.35483871 | K5: 16.84677419 | L5: 43.82258065 | M5: 1.297101449 | N5: 10.65942029 | O5: 46.36956522 | P5: ='Regression Coefficients'!C5+'Regression Coefficients'!D5*Background!C5+'Regression Coefficients'!E5*Background!D5 -> 1176.9074 | Q5: =HLOOKUP(E5,'Regression Coefficients'!$F$2:$AC$33,1+MATCH(B5,'Regression Coefficients'!$B$3:$B$33,0),FALSE) -> 0 | R5: =IF(F5=1,'Regression Coefficients'!AD5,IF(F5=2,'Regression Coefficients'!AE5,IF(F5=3,'Regression Coefficients'!AF5,IF(F5=4,'Regression Coefficients'!AG5,'Regression Coefficients'!AH5)))) -> 0 | S5: =IF(G5=0,'Regression Coefficients'!AI5,'Regression Coefficients'!AJ5)+IF(H5=0,'Regression Coefficients'!AK5,'Regression Coefficients'!AL5)+IF(I5=0,'Regression Coefficients'!AM5,'Regression Coefficients'!AN5) -> 0 | T5: =SUMPRODUCT('Regression Coefficients'!AO5:AT5,Background!J5:O5) -> 236.5242571 | U5: 1413.431657 | V5: 3640.253926 | W5: 644.7988954 | X5: 1807.802208 | Y5: 3709.79125 | Z5: 9.24 | AA5: 36198.12923 | AB5: =IF(U5<Z5,Z5,U5) -> 1413.431657 | AC5: 1413.431657 | AE5: 28 | AF5: 325783 | AG5: 34495.01331
A6: AD | B6: ='Regression Coefficients'!B6 -> EXCAVATION-STREET | C6: ='Production Rate Estimates'!D8 -> 0 | D6: 3000000 | E6: 110 | F6: 2 | G6: 1 | H6: 1 | I6: 1 | J6: 16.92 | K6: 11.8 | L6: 35.92 | M6: 1.52 | N6: 8.32 | O6: 33.4 | P6: ='Regression Coefficients'!C6+'Regression Coefficients'!D6*Background!C6+'Regression Coefficients'!E6*Background!D6 -> 365.42328 | Q6: =HLOOKUP(E6,'Regression Coefficients'!$F$2:$AC$33,1+MATCH(B6,'Regression Coefficients'!$B$3:$B$33,0),FALSE) -> 0 | R6: =IF(F6=1,'Regression Coefficients'!AD6,IF(F6=2,'Regression Coefficients'!AE6,IF(F6=3,'Regression Coefficients'!AF6,IF(F6=4,'Regression Coefficients'!AG6,'Regression Coefficients'!AH6)))) -> 0 | S6: =IF(G6=0,'Regression Coefficients'!AI6,'Regression Coefficients'!AJ6)+IF(H6=0,'Regression Coefficients'!AK6,'Regression Coefficients'!AL6)+IF(I6=0,'Regression Coefficients'!AM6,'Regression Coefficients'!AN6) -> 0 | T6: =SUMPRODUCT('Regression Coefficients'!AO6:AT6,Background!J6:O6) -> 0 | U6: 365.42328 | V6: 1518.124488 | W6: 518.4025 | X6: 977.8472 | Y6: 2426.366786 | Z6: 52.25 | AA6: 5734.591775 | AB6: =IF(U6<Z6,Z6,U6) -> 365.42328 | AC6: 365.42328 | AE6: 75 | AF6: 27191 | AG6: 22846.43125
A7: AE | B7: ='Regression Coefficients'!B7 -> CRUSHED AGGREGATE COURSE | C7: ='Production Rate Estimates'!D9 -> 0 | D7: 3000000 | E7: 110 | F7: 2 | G7: 1 | H7: 1 | I7: 1 | J7: 17.03663004 | K7: 12.20879121 | L7: 34.57509158 | M7: 0.9525316456 | N7: 6.905063291 | O7: 33.35759494 | P7: ='Regression Coefficients'!C7+'Regression Coefficients'!D7*Background!C7+'Regression Coefficients'!E7*Background!D7 -> 70.92027 | Q7: =HLOOKUP(E7,'Regression Coefficients'!$F$2:$AC$33,1+MATCH(B7,'Regression Coefficients'!$B$3:$B$33,0),FALSE) -> 0 | R7: =IF(F7=1,'Regression Coefficients'!AD7,IF(F7=2,'Regression Coefficients'!AE7,IF(F7=3,'Regression Coefficients'!AF7,IF(F7=4,'Regression Coefficients'!AG7,'Regression Coefficients'!AH7)))) -> 0 | S7: =IF(G7=0,'Regression Coefficients'!AI7,'Regression Coefficients'!AJ7)+IF(H7=0,'Regression Coefficients'!AK7,'Regression Coefficients'!AL7)+IF(I7=0,'Regression Coefficients'!AM7,'Regression Coefficients'!AN7) -> 0 | T7: =SUMPRODUCT('Regression Coefficients'!AO7:AT7,Background!J7:O7) -> 611.5830746 | U7: 682.5033446 | V7: 2087.992669 | W7: 132.09375 | X7: 636.1763179 | Y7: 2653.521168 | Z7: 1.85 | AA7: 20606.50478 | AB7: =IF(U7<Z7,Z7,U7) -> 682.5033446 | AC7: 682.5033446 | AE7: 1 | AF7: 151590 | AG7: 28186.33585
A8: AF | B8: ='Regression Coefficients'!B8 -> BASE-CEMENT TREATED | C8: ='Production Rate Estimates'!D10 -> 0 | D8: 3000000 | E8: 110 | F8: 2 | G8: 1 | H8: 1 | I8: 1 | J8: 27.38461538 | K8: 17.46153846 | L8: 20.61538462 | M8: 1.6 | N8: 12.73333333 | O8: 27.66666667 | V8: 3453.363491 | W8: 1549.766595 | X8: 3565.800376 | Y8: 5045.114 | Z8: 577.48 | AA8: 8009.763333 | AC8: =V8 -> 3453.363491 | AE8: 2887 | AF8: 58891 | AG8: 2887
A9: AG | B9: ='Regression Coefficients'!B9 -> DRAINAGE PIPE (<= 24 IN) | C9: ='Production Rate Estimates'!D11 -> 0 | D9: 3000000 | E9: 110 | F9: 2 | G9: 1 | H9: 1 | I9: 1 | J9: 18.83417085 | K9: 13.36180905 | L9: 40.95979899 | M9: 1.300469484 | N9: 8.892018779 | O9: 43.48356808 | P9: ='Regression Coefficients'!C9+'Regression Coefficients'!D9*Background!C9+'Regression Coefficients'!E9*Background!D9 -> 69.182399 | Q9: =HLOOKUP(E9,'Regression Coefficients'!$F$2:$AC$33,1+MATCH(B9,'Regression Coefficients'!$B$3:$B$33,0),FALSE) -> 19.958264 | R9: =IF(F9=1,'Regression Coefficients'!AD9,IF(F9=2,'Regression Coefficients'!AE9,IF(F9=3,'Regression Coefficients'!AF9,IF(F9=4,'Regression Coefficients'!AG9,'Regression Coefficients'!AH9)))) -> 0 | S9: =IF(G9=0,'Regression Coefficients'!AI9,'Regression Coefficients'!AJ9)+IF(H9=0,'Regression Coefficients'!AK9,'Regression Coefficients'!AL9)+IF(I9=0,'Regression Coefficients'!AM9,'Regression Coefficients'!AN9) -> 0 | T9: =SUMPRODUCT('Regression Coefficients'!AO9:AT9,Background!J9:O9) -> -12.05073498 | U9: 77.08992802 | V9: 95.23363221 | W9: 59.04230769 | X9: 86.7742142 | Y9: 112.2285851 | Z9: 1.5 | AA9: 527.3129921 | AB9: =IF(U9<Z9,Z9,U9) -> 77.08992802 | AC9: =IF(AB9>AA9,AA9,AB9) -> 77.08992802 | AD9: =IF(C9<=0,"",AC9) ->  | AE9: 3 | AF9: 9692 | AG9: 2458
A10: AH | B10: ='Regression Coefficients'!B10 -> DRAINAGE PIPE (> 24 IN) | C10: ='Production Rate Estimates'!D12 -> 0 | D10: 3000000 | E10: 110 | F10: 2 | G10: 1 | H10: 1 | I10: 1 | J10: 22.15517241 | K10: 15.62931034 | L10: 50.31896552 | M10: 1.462809917 | N10: 11 | O10: 52.23140496 | P10: ='Regression Coefficients'!C10+'Regression Coefficients'!D10*Background!C10+'Regression Coefficients'!E10*Background!D10 -> 69.35758 | Q10: =HLOOKUP(E10,'Regression Coefficients'!$F$2:$AC$33,1+MATCH(B10,'Regression Coefficients'!$B$3:$B$33,0),FALSE) -> 0 | R10: =IF(F10=1,'Regression Coefficients'!AD10,IF(F10=2,'Regression Coefficients'!AE10,IF(F10=3,'Regression Coefficients'!AF10,IF(F10=4,'Regression Coefficients'!AG10,'Regression Coefficients'!AH10)))) -> 0 | S10: =IF(G10=0,'Regression Coefficients'!AI10,'Regression Coefficients'!AJ10)+IF(H10=0,'Regression Coefficients'!AK10,'Regression Coefficients'!AL10)+IF(I10=0,'Regression Coefficients'!AM10,'Regression Coefficients'!AN10) -> 0 | T10: =SUMPRODUCT('Regression Coefficients'!AO10:AT10,Background!J10:O10) -> 9.709953769 | U10: 79.06753377 | V10: 91.07711595 | W10: 54.82627953 | X10: 72.8 | Y10: 118.5 | Z10: 4.666666667 | AA10: 336.905 | AB10: =IF(U10<Z10,Z10,U10) -> 79.06753377 | AC10: 79.06753377 | AD10: =IF(C10<=0,"",AC10) ->  | AE10: 14 | AF10: 4942 | AG10: 1433
A11: AI | B11: ='Regression Coefficients'!B11 -> RCB | C11: ='Production Rate Estimates'!D13 -> 0 | D11: 3000000 | E11: 110 | F11: 2 | G11: 1 | H11: 1 | I11: 1 | J11: 24.37931034 | K11: 15.10344828 | L11: 36.10344828 | M11: 1.6 | N11: 10.76666667 | O11: 36.4 | P11: ='Regression Coefficients'!C11+'Regression Coefficients'!D11*Background!C11+'Regression Coefficients'!E11*Background!D11 -> 64.984774 | Q11: =HLOOKUP(E11,'Regression Coefficients'!$F$2:$AC$33,1+MATCH(B11,'Regression Coefficients'!$B$3:$B$33,0),FALSE) -> 0 | R11: =IF(F11=1,'Regression Coefficients'!AD11,IF(F11=2,'Regression Coefficients'!AE11,IF(F11=3,'Regression Coefficients'!AF11,IF(F11=4,'Regression Coefficients'!AG11,'Regression Coefficients'!AH11)))) -> 0 | S11: =IF(G11=0,'Regression Coefficients'!AI11,'Regression Coefficients'!AJ11)+IF(H11=0,'Regression Coefficients'!AK11,'Regression Coefficients'!AL11)+IF(I11=0,'Regression Coefficients'!AM11,'Regression Coefficients'!AN11) -> 0 | T11: =SUMPRODUCT('Regression Coefficients'!AO11:AT11,Background!J11:O11) -> 0 | U11: 64.984774 | V11: 95.32302275 | W11: 48.75 | X11: 66.01345144 | Y11: 139.5 | Z11: 18 | AA11: 250 | AB11: =IF(U11<Z11,Z11,U11) -> 64.984774 | AC11: 64.984774 | AE11: 36 | AF11: 610 | AG11: 264
A12: AJ | B12: ='Regression Coefficients'!B12 -> SSPP | C12: ='Production Rate Estimates'!D14 -> 0 | D12: 3000000 | E12: 110 | F12: 2 | G12: 1 | H12: 1 | I12: 1 | J12: 19.66666667 | K12: 13.66666667 | L12: 20 | M12: 1.5 | N12: 8.5 | O12: 15.25 | V12: 65.5 | W12: 21 | X12: 54 | Y12: 98.5 | Z12: 18 | AA12: 136 | AC12: =V12 -> 65.5 | AE12: 18 | AF12: 272 | AG12: 18
A13: AK | B13: ='Regression Coefficients'!B13 -> RIPRAP | C13: ='Production Rate Estimates'!D15 -> 0 | D13: 3000000 | E13: 110 | F13: 2 | G13: 1 | H13: 1 | I13: 1 | J13: 18.05673759 | K13: 12.44680851 | L13: 32.65248227 | M13: 1.038216561 | N13: 7.382165605 | O13: 36.37579618 | P13: ='Regression Coefficients'!C13+'Regression Coefficients'!D13*Background!C13+'Regression Coefficients'!E13*Background!D13 -> 45.425339 | Q13: =HLOOKUP(E13,'Regression Coefficients'!$F$2:$AC$33,1+MATCH(B13,'Regression Coefficients'!$B$3:$B$33,0),FALSE) -> 12.952371 | R13: =IF(F13=1,'Regression Coefficients'!AD13,IF(F13=2,'Regression Coefficients'!AE13,IF(F13=3,'Regression Coefficients'!AF13,IF(F13=4,'Regression Coefficients'!AG13,'Regression Coefficients'!AH13)))) -> 0 | S13: =IF(G13=0,'Regression Coefficients'!AI13,'Regression Coefficients'!AJ13)+IF(H13=0,'Regression Coefficients'!AK13,'Regression Coefficients'!AL13)+IF(I13=0,'Regression Coefficients'!AM13,'Regression Coefficients'!AN13) -> 0 | T13: =SUMPRODUCT('Regression Coefficients'!AO13:AT13,Background!J13:O13) -> 0 | U13: 58.37771 | V13: 136.2533801 | W13: 23.6 | X13: 94.21 | Y13: 202.7120133 | Z13: 3.833333333 | AA13: 914.2574829 | AB13: =IF(U13<Z13,Z13,U13) -> 58.37771 | AC13: 58.37771 | AD13: =IF(C13<=0,"",AC13) ->  | AE13: 1 | AF13: 7410 | AG13: 2430
A14: AL | B14: ='Regression Coefficients'!B14 -> COLD MILLING | C14: ='Production Rate Estimates'!D16 -> 0 | D14: 3000000 | E14: 110 | F14: 2 | G14: 1 | H14: 1 | I14: 1 | J14: 10.99591837 | K14: 9.053061224 | L14: 28.9755102 | M14: 0.8321678322 | N14: 6.688811189 | O14: 37.54545455 | P14: ='Regression Coefficients'!C14+'Regression Coefficients'!D14*Background!C14+'Regression Coefficients'!E14*Background!D14 -> 9287.3363 | Q14: =HLOOKUP(E14,'Regression Coefficients'!$F$2:$AC$33,1+MATCH(B14,'Regression Coefficients'!$B$3:$B$33,0),FALSE) -> 0 | R14: =IF(F14=1,'Regression Coefficients'!AD14,IF(F14=2,'Regression Coefficients'!AE14,IF(F14=3,'Regression Coefficients'!AF14,IF(F14=4,'Regression Coefficients'!AG14,'Regression Coefficients'!AH14)))) -> 0 | S14: =IF(G14=0,'Regression Coefficients'!AI14,'Regression Coefficients'!AJ14)+IF(H14=0,'Regression Coefficients'!AK14,'Regression Coefficients'!AL14)+IF(I14=0,'Regression Coefficients'!AM14,'Regression Coefficients'!AN14) -> 0 | T14: =SUMPRODUCT('Regression Coefficients'!AO14:AT14,Background!J14:O14) -> -724.8416826 | U14: 8562.494617 | V14: 15077.22791 | W14: 1911.1 | X14: 8220.1 | Y14: 20472.35 | Z14: 17.9996502 | AA14: 116274.5 | AB14: 8562.494617 | AC14: 8562.494617 | AE14: 36 | AF14: 656548 | AG14: 51132.16245
A15: AM | B15: ='Regression Coefficients'!B15 -> PLANT MIX SURFACING | C15: ='Production Rate Estimates'!D17 -> 0 | D15: 3000000 | E15: 110 | F15: 2 | G15: 1 | H15: 1 | I15: 1 | J15: 22.92074592 | K15: 18.4988345 | L15: 50.31468531 | M15: 1.270613108 | N15: 14.05496829 | O15: 75.0422833 | P15: ='Regression Coefficients'!C15+'Regression Coefficients'!D15*Background!C15+'Regression Coefficients'!E15*Background!D15 -> -324.739 | Q15: =HLOOKUP(E15,'Regression Coefficients'!$F$2:$AC$33,1+MATCH(B15,'Regression Coefficients'!$B$3:$B$33,0),FALSE) -> 253.64999 | R15: =IF(F15=1,'Regression Coefficients'!AD15,IF(F15=2,'Regression Coefficients'!AE15,IF(F15=3,'Regression Coefficients'!AF15,IF(F15=4,'Regression Coefficients'!AG15,'Regression Coefficients'!AH15)))) -> 379.55282 | S15: =IF(G15=0,'Regression Coefficients'!AI15,'Regression Coefficients'!AJ15)+IF(H15=0,'Regression Coefficients'!AK15,'Regression Coefficients'!AL15)+IF(I15=0,'Regression Coefficients'!AM15,'Regression Coefficients'!AN15) -> 0 | T15: =SUMPRODUCT('Regression Coefficients'!AO15:AT15,Background!J15:O15) -> 68.3943597 | U15: 376.8581697 | V15: 1508.934922 | W15: 378.2747159 | X15: 1027.791261 | Y15: 2177.091273 | Z15: 2.363333333 | AA15: 14223.03 | AB15: 376.8581697 | AC15: 376.8581697 | AE15: 6 | AF15: 156515 | AG15: 7066
A16: AN | B16: ='Regression Coefficients'!B16 -> COVER | C16: ='Production Rate Estimates'!D18 -> 0 | D16: 3000000 | E16: 110 | F16: 2 | G16: 1 | H16: 1 | I16: 1 | J16: 18.24473684 | K16: 14.85526316 | L16: 32.05526316 | M16: 1.062770563 | N16: 10.66666667 | O16: 51.51731602 | P16: ='Regression Coefficients'!C16+'Regression Coefficients'!D16*Background!C16+'Regression Coefficients'!E16*Background!D16 -> -8221.184 | Q16: =HLOOKUP(E16,'Regression Coefficients'!$F$2:$AC$33,1+MATCH(B16,'Regression Coefficients'!$B$3:$B$33,0),FALSE) -> 17704.259 | R16: =IF(F16=1,'Regression Coefficients'!AD16,IF(F16=2,'Regression Coefficients'!AE16,IF(F16=3,'Regression Coefficients'!AF16,IF(F16=4,'Regression Coefficients'!AG16,'Regression Coefficients'!AH16)))) -> 14092.174 | S16: =IF(G16=0,'Regression Coefficients'!AI16,'Regression Coefficients'!AJ16)+IF(H16=0,'Regression Coefficients'!AK16,'Regression Coefficients'!AL16)+IF(I16=0,'Regression Coefficients'!AM16,'Regression Coefficients'!AN16) -> 0 | T16: =SUMPRODUCT('Regression Coefficients'!AO16:AT16,Background!J16:O16) -> -360.0754989 | U16: 23215.1735 | V16: 83884.18652 | W16: 15891.575 | X16: 56360.18091 | Y16: 120457.647 | Z16: 155.55 | AA16: 484405.2 | AB16: 23215.1735 | AC16: 23215.1735 | AE16: 311 | AF16: 961168 | AG16: 83941.0398
A17: AO | B17: ='Regression Coefficients'!B17 -> MICROSURFACING | C17: ='Production Rate Estimates'!D19 -> 0 | D17: 3000000 | E17: 110 | F17: 2 | G17: 1 | H17: 1 | I17: 1 | J17: 17.76923077 | K17: 12.38461538 | L17: 29.61538462 | M17: 0.5714285714 | N17: 16.21428571 | O17: 61.42857143 | P17: ='Regression Coefficients'!C17+'Regression Coefficients'!D17*Background!C17+'Regression Coefficients'!E17*Background!D17 -> 252.35387 | Q17: =HLOOKUP(E17,'Regression Coefficients'!$F$2:$AC$33,1+MATCH(B17,'Regression Coefficients'!$B$3:$B$33,0),FALSE) -> 0 | R17: =IF(F17=1,'Regression Coefficients'!AD17,IF(F17=2,'Regression Coefficients'!AE17,IF(F17=3,'Regression Coefficients'!AF17,IF(F17=4,'Regression Coefficients'!AG17,'Regression Coefficients'!AH17)))) -> 0 | S17: =IF(G17=0,'Regression Coefficients'!AI17,'Regression Coefficients'!AJ17)+IF(H17=0,'Regression Coefficients'!AK17,'Regression Coefficients'!AL17)+IF(I17=0,'Regression Coefficients'!AM17,'Regression Coefficients'!AN17) -> 0 | T17: =SUMPRODUCT('Regression Coefficients'!AO17:AT17,Background!J17:O17) -> 0 | U17: 252.35387 | V17: 464.5953972 | W17: 407.92375 | X17: 442.77525 | Y17: 525.4656667 | Z17: 256.59 | AA17: 668.6266 | AB17: 256.59 | AC17: 256.59 | AE17: 1065 | AF17: 3479 | AG17: 1683
A18: AP | B18: ='Regression Coefficients'!B18 -> CRACK SEALING | C18: ='Production Rate Estimates'!D20 -> 0 | D18: 3000000 | E18: 110 | F18: 2 | G18: 1 | H18: 1 | I18: 1 | J18: 9.666666667 | K18: 7.764705882 | L18: 30.47058824 | M18: 0.724137931 | N18: 6.068965517 | O18: 41.15517241 | P18: ='Regression Coefficients'!C18+'Regression Coefficients'!D18*Background!C18+'Regression Coefficients'!E18*Background!D18 -> 12712.243 | Q18: =HLOOKUP(E18,'Regression Coefficients'!$F$2:$AC$33,1+MATCH(B18,'Regression Coefficients'!$B$3:$B$33,0),FALSE) -> -7717 | R18: =IF(F18=1,'Regression Coefficients'!AD18,IF(F18=2,'Regression Coefficients'!AE18,IF(F18=3,'Regression Coefficients'!AF18,IF(F18=4,'Regression Coefficients'!AG18,'Regression Coefficients'!AH18)))) -> 0 | S18: =IF(G18=0,'Regression Coefficients'!AI18,'Regression Coefficients'!AJ18)+IF(H18=0,'Regression Coefficients'!AK18,'Regression Coefficients'!AL18)+IF(I18=0,'Regression Coefficients'!AM18,'Regression Coefficients'!AN18) -> 0 | T18: =SUMPRODUCT('Regression Coefficients'!AO18:AT18,Background!J18:O18) -> 1111.008284 | U18: 6106.251284 | V18: 6345.975029 | W18: 3003.75 | X18: 5129.788889 | Y18: 8003.3375 | Z18: 595.8333333 | AA18: 30125 | AB18: 6106.251284 | AC18: 6106.251284 | AE18: 1051 | AF18: 81135 | AG18: 13700
A19: AQ | B19: ='Regression Coefficients'!B19 -> PCCP | C19: ='Production Rate Estimates'!D21 -> 0 | D19: 3000000 | E19: 110 | F19: 2 | G19: 1 | H19: 1 | I19: 1 | J19: 15.55555556 | K19: 11 | L19: 17.55555556 | M19: 1.272727273 | N19: 7.090909091 | O19: 34 | P19: ='Regression Coefficients'!C19+'Regression Coefficients'!D19*Background!C19+'Regression Coefficients'!E19*Background!D19 -> 366.74127 | Q19: =HLOOKUP(E19,'Regression Coefficients'!$F$2:$AC$33,1+MATCH(B19,'Regression Coefficients'!$B$3:$B$33,0),FALSE) -> 0 | R19: =IF(F19=1,'Regression Coefficients'!AD19,IF(F19=2,'Regression Coefficients'!AE19,IF(F19=3,'Regression Coefficients'!AF19,IF(F19=4,'Regression Coefficients'!AG19,'Regression Coefficients'!AH19)))) -> 0 | S19: =IF(G19=0,'Regression Coefficients'!AI19,'Regression Coefficients'!AJ19)+IF(H19=0,'Regression Coefficients'!AK19,'Regression Coefficients'!AL19)+IF(I19=0,'Regression Coefficients'!AM19,'Regression Coefficients'!AN19) -> 0 | T19: =SUMPRODUCT('Regression Coefficients'!AO19:AT19,Background!J19:O19) -> 0 | U19: 366.74127 | V19: 568.3882639 | W19: 236.6725 | X19: 447.5 | Y19: 1104.5 | Z19: 72 | AA19: 1171.78 | AB19: 366.74127 | AC19: 366.74127 | AE19: 101 | AF19: 13572 | AG19: 1555
A20: AR | B20: ='Regression Coefficients'!B20 -> CURB AND GUTTER | C20: ='Production Rate Estimates'!D22 -> 0 | D20: 3000000 | E20: 110 | F20: 2 | G20: 1 | H20: 1 | I20: 1 | J20: 11.54081633 | K20: 8.091836735 | L20: 20.54081633 | M20: 0.8547008547 | N20: 6.521367521 | O20: 25.76068376 | P20: ='Regression Coefficients'!C20+'Regression Coefficients'!D20*Background!C20+'Regression Coefficients'!E20*Background!D20 -> 452.60174 | Q20: =HLOOKUP(E20,'Regression Coefficients'!$F$2:$AC$33,1+MATCH(B20,'Regression Coefficients'!$B$3:$B$33,0),FALSE) -> 0 | R20: =IF(F20=1,'Regression Coefficients'!AD20,IF(F20=2,'Regression Coefficients'!AE20,IF(F20=3,'Regression Coefficients'!AF20,IF(F20=4,'Regression Coefficients'!AG20,'Regression Coefficients'!AH20)))) -> 181.70706 | S20: =IF(G20=0,'Regression Coefficients'!AI20,'Regression Coefficients'!AJ20)+IF(H20=0,'Regression Coefficients'!AK20,'Regression Coefficients'!AL20)+IF(I20=0,'Regression Coefficients'!AM20,'Regression Coefficients'!AN20) -> 0 | T20: =SUMPRODUCT('Regression Coefficients'!AO20:AT20,Background!J20:O20) -> 0 | U20: 634.3088 | V20: 408.3892593 | W20: 136.5574534 | X20: 261 | Y20: 562.0110287 | Z20: 13.2 | AA20: 1614.185714 | AB20: 634.3088 | AC20: 634.3088 | AE20: 13 | AF20: 1614 | AG20: 433
A21: AS | B21: ='Regression Coefficients'!B21 -> SIDEWALK | C21: ='Production Rate Estimates'!D23 -> 0 | D21: =$D$3 -> 3000000 | E21: 110 | F21: 2 | G21: 1 | H21: 1 | I21: 1 | J21: 10.48979592 | K21: 7.459183673 | L21: 18.89795918 | M21: 0.8583333333 | N21: 6.266666667 | O21: 23.95 | P21: ='Regression Coefficients'!C21+'Regression Coefficients'!D21*Background!C21+'Regression Coefficients'!E21*Background!D21 -> -66.34135 | Q21: =HLOOKUP(E21,'Regression Coefficients'!$F$2:$AC$33,1+MATCH(B21,'Regression Coefficients'!$B$3:$B$33,0),FALSE) -> 0 | R21: =IF(F21=1,'Regression Coefficients'!AD21,IF(F21=2,'Regression Coefficients'!AE21,IF(F21=3,'Regression Coefficients'!AF21,IF(F21=4,'Regression Coefficients'!AG21,'Regression Coefficients'!AH21)))) -> 0 | S21: =IF(G21=0,'Regression Coefficients'!AI21,'Regression Coefficients'!AJ21)+IF(H21=0,'Regression Coefficients'!AK21,'Regression Coefficients'!AL21)+IF(I21=0,'Regression Coefficients'!AM21,'Regression Coefficients'!AN21) -> 0 | T21: =SUMPRODUCT('Regression Coefficients'!AO21:AT21,Background!J21:O21) -> -16.91857987 | U21: -83.25992987 | V21: 246.4866934 | W21: 60.775 | X21: 130.8101565 | Y21: 282.522375 | Z21: 4.15 | AA21: 2168.1 | AB21: 4.15 | AC21: 4.15 | AE21: 7 | AF21: 8489 | AG21: 4440.125007
A22: AT | B22: ='Regression Coefficients'!B22 -> FARM FENCE | C22: ='Production Rate Estimates'!D24 -> 0 | D22: 3000000 | E22: 110 | F22: 2 | G22: 1 | H22: 1 | I22: 1 | J22: 7.115702479 | K22: 5.099173554 | L22: 13.71900826 | M22: 0.5061728395 | N22: 2.358024691 | O22: 10.51851852 | P22: ='Regression Coefficients'!C22+'Regression Coefficients'!D22*Background!C22+'Regression Coefficients'!E22*Background!D22 -> 1682.3873 | Q22: =HLOOKUP(E22,'Regression Coefficients'!$F$2:$AC$33,1+MATCH(B22,'Regression Coefficients'!$B$3:$B$33,0),FALSE) -> -915.2694 | R22: =IF(F22=1,'Regression Coefficients'!AD22,IF(F22=2,'Regression Coefficients'!AE22,IF(F22=3,'Regression Coefficients'!AF22,IF(F22=4,'Regression Coefficients'!AG22,'Regression Coefficients'!AH22)))) -> 649.82343 | S22: =IF(G22=0,'Regression Coefficients'!AI22,'Regression Coefficients'!AJ22)+IF(H22=0,'Regression Coefficients'!AK22,'Regression Coefficients'!AL22)+IF(I22=0,'Regression Coefficients'!AM22,'Regression Coefficients'!AN22) -> 0 | T22: =SUMPRODUCT('Regression Coefficients'!AO22:AT22,Background!J22:O22) -> 0 | U22: 1416.94133 | V22: 2205.871401 | W22: 540.3106955 | X22: 1423.1 | Y22: 2422.373825 | Z22: 10 | AA22: 17924.33333 | AB22: 1416.94133 | AC22: 1416.94133 | AE22: 20 | AF22: 105577 | AG22: 5052
A23: AU | B23: ='Regression Coefficients'!B23 -> GUARDRAIL STEEL | C23: ='Production Rate Estimates'!D25 -> 0 | D23: 3000000 | E23: 110 | F23: 2 | G23: 1 | H23: 1 | I23: 1 | J23: 8.098039216 | K23: 6.529411765 | L23: 20.81862745 | M23: 0.7385892116 | N23: 5.377593361 | O23: 24.93360996 | P23: ='Regression Coefficients'!C23+'Regression Coefficients'!D23*Background!C23+'Regression Coefficients'!E23*Background!D23 -> 410.47635 | Q23: =HLOOKUP(E23,'Regression Coefficients'!$F$2:$AC$33,1+MATCH(B23,'Regression Coefficients'!$B$3:$B$33,0),FALSE) -> -66.55839 | R23: =IF(F23=1,'Regression Coefficients'!AD23,IF(F23=2,'Regression Coefficients'!AE23,IF(F23=3,'Regression Coefficients'!AF23,IF(F23=4,'Regression Coefficients'!AG23,'Regression Coefficients'!AH23)))) -> 0 | S23: =IF(G23=0,'Regression Coefficients'!AI23,'Regression Coefficients'!AJ23)+IF(H23=0,'Regression Coefficients'!AK23,'Regression Coefficients'!AL23)+IF(I23=0,'Regression Coefficients'!AM23,'Regression Coefficients'!AN23) -> 0 | T23: =SUMPRODUCT('Regression Coefficients'!AO23:AT23,Background!J23:O23) -> 0 | U23: 343.91796 | V23: 679.5060407 | W23: 150 | X23: 424.437336 | Y23: 901.6875 | Z23: 4.166666667 | AA23: 5150 | AB23: 343.91796 | AC23: 343.91796 | AE23: 13 | AF23: 39000 | AG23: 1518.700787
A24: AV | B24: ='Regression Coefficients'!B24 -> CONCRETE BARRIER RAIL | C24: ='Production Rate Estimates'!D26 -> 0 | D24: 3000000 | E24: 110 | F24: 2 | G24: 1 | H24: 1 | I24: 1 | J24: 10.26086957 | K24: 7.347826087 | L24: 30.60869565 | M24: 0.6388888889 | N24: 5.194444444 | O24: 26.55555556 | P24: ='Regression Coefficients'!C24+'Regression Coefficients'!D24*Background!C24+'Regression Coefficients'!E24*Background!D24 -> -78.00615 | Q24: =HLOOKUP(E24,'Regression Coefficients'!$F$2:$AC$33,1+MATCH(B24,'Regression Coefficients'!$B$3:$B$33,0),FALSE) -> -1.881957 | R24: =IF(F24=1,'Regression Coefficients'!AD24,IF(F24=2,'Regression Coefficients'!AE24,IF(F24=3,'Regression Coefficients'!AF24,IF(F24=4,'Regression Coefficients'!AG24,'Regression Coefficients'!AH24)))) -> 147.56348 | S24: =IF(G24=0,'Regression Coefficients'!AI24,'Regression Coefficients'!AJ24)+IF(H24=0,'Regression Coefficients'!AK24,'Regression Coefficients'!AL24)+IF(I24=0,'Regression Coefficients'!AM24,'Regression Coefficients'!AN24) -> 0 | T24: =SUMPRODUCT('Regression Coefficients'!AO24:AT24,Background!J24:O24) -> 112.9604026 | U24: 180.6357756 | V24: 57.5346688 | W24: 12.25 | X24: 25 | Y24: 84.075 | Z24: 3 | AA24: 250 | AB24: 180.6357756 | AC24: 180.6357756 | AE24: 3 | AF24: 2352 | AG24: 2352
A25: AW | B25: ='Regression Coefficients'!B25 -> SEEDING | C25: ='Production Rate Estimates'!D27 -> 0 | D25: 3000000 | E25: 110 | F25: 2 | G25: 1 | H25: 1 | I25: 1 | J25: 6.525547445 | K25: 4.635036496 | L25: 14.81021898 | M25: 0.3422222222 | N25: 1.342222222 | O25: 6.68 | P25: ='Regression Coefficients'!C25+'Regression Coefficients'!D25*Background!C25+'Regression Coefficients'!E25*Background!D25 -> 4.2263686 | Q25: =HLOOKUP(E25,'Regression Coefficients'!$F$2:$AC$33,1+MATCH(B25,'Regression Coefficients'!$B$3:$B$33,0),FALSE) -> 0 | R25: =IF(F25=1,'Regression Coefficients'!AD25,IF(F25=2,'Regression Coefficients'!AE25,IF(F25=3,'Regression Coefficients'!AF25,IF(F25=4,'Regression Coefficients'!AG25,'Regression Coefficients'!AH25)))) -> 0 | S25: =IF(G25=0,'Regression Coefficients'!AI25,'Regression Coefficients'!AJ25)+IF(H25=0,'Regression Coefficients'!AK25,'Regression Coefficients'!AL25)+IF(I25=0,'Regression Coefficients'!AM25,'Regression Coefficients'!AN25) -> 0 | T25: =SUMPRODUCT('Regression Coefficients'!AO25:AT25,Background!J25:O25) -> 0 | U25: 4.2263686 | V25: 12.23642484 | W25: 2.5125 | X25: 7.2 | Y25: 18.0654626 | Z25: 0.55 | AA25: 55.4375 | AB25: 4.2263686 | AC25: 4.2263686 | AE25: 1 | AF25: 236 | AG25: 18.34263247
A26: AX | B26: ='Regression Coefficients'!B26 -> REINFORCING STEEL | C26: ='Production Rate Estimates'!D28 -> 0 | D26: 3000000 | E26: 110 | F26: 2 | G26: 1 | H26: 1 | I26: 1 | J26: 8.394366197 | K26: 4.816901408 | L26: 16.5915493 | M26: 0.96 | N26: 4.24 | O26: 18.41333333 | P26: ='Regression Coefficients'!C26+'Regression Coefficients'!D26*Background!C26+'Regression Coefficients'!E26*Background!D26 -> -574.955 | Q26: =HLOOKUP(E26,'Regression Coefficients'!$F$2:$AC$33,1+MATCH(B26,'Regression Coefficients'!$B$3:$B$33,0),FALSE) -> 9890.763 | R26: =IF(F26=1,'Regression Coefficients'!AD26,IF(F26=2,'Regression Coefficients'!AE26,IF(F26=3,'Regression Coefficients'!AF26,IF(F26=4,'Regression Coefficients'!AG26,'Regression Coefficients'!AH26)))) -> 3290.2446 | S26: =IF(G26=0,'Regression Coefficients'!AI26,'Regression Coefficients'!AJ26)+IF(H26=0,'Regression Coefficients'!AK26,'Regression Coefficients'!AL26)+IF(I26=0,'Regression Coefficients'!AM26,'Regression Coefficients'!AN26) -> 0 | T26: =SUMPRODUCT('Regression Coefficients'!AO26:AT26,Background!J26:O26) -> -1643.392776 | U26: 10962.65982 | V26: 13995.35078 | W26: 5194.741644 | X26: 10516.5 | Y26: 18271.31667 | Z26: 248.8571429 | AA26: 61785.625 | AB26: 10962.65982 | AC26: 10962.65982 | AE26: 849 | AF26: 2731615 | AG26: 54904
A27: AY | B27: ='Regression Coefficients'!B27 -> DRILLED SHAFT | C27: ='Production Rate Estimates'!D29 -> 0 | D27: 3000000 | E27: 110 | F27: 2 | G27: 1 | H27: 1 | I27: 1 | J27: 12 | K27: 5 | L27: 5 | M27: 1.333333333 | N27: 5.666666667 | O27: 10.33333333 | V27: 102.5616162 | W27: 59.00909091 | X27: 87.81818182 | Y27: 138.7424242 | Z27: 30.2 | AA27: 189.6666667 | AC27: =V27 -> 102.5616162 | AE27: 60 | AF27: 966 | AG27: 569
A28: AZ | B28: ='Regression Coefficients'!B28 -> CONCRETE-CLASS DECK | C28: ='Production Rate Estimates'!D30 -> 0 | D28: 3000000 | E28: 110 | F28: 2 | G28: 1 | H28: 1 | I28: 1 | J28: 8.054545455 | K28: 4.945454545 | L28: 22.10909091 | M28: 1.083333333 | N28: 5.183333333 | O28: 22.68333333 | P28: ='Regression Coefficients'!C28+'Regression Coefficients'!D28*Background!C28+'Regression Coefficients'!E28*Background!D28 -> 76.784394 | Q28: =HLOOKUP(E28,'Regression Coefficients'!$F$2:$AC$33,1+MATCH(B28,'Regression Coefficients'!$B$3:$B$33,0),FALSE) -> -9.918873 | R28: =IF(F28=1,'Regression Coefficients'!AD28,IF(F28=2,'Regression Coefficients'!AE28,IF(F28=3,'Regression Coefficients'!AF28,IF(F28=4,'Regression Coefficients'!AG28,'Regression Coefficients'!AH28)))) -> 0 | S28: =IF(G28=0,'Regression Coefficients'!AI28,'Regression Coefficients'!AJ28)+IF(H28=0,'Regression Coefficients'!AK28,'Regression Coefficients'!AL28)+IF(I28=0,'Regression Coefficients'!AM28,'Regression Coefficients'!AN28) -> 0 | T28: =SUMPRODUCT('Regression Coefficients'!AO28:AT28,Background!J28:O28) -> 4.644181126 | U28: 71.50970213 | V28: 72.62144162 | W28: 43.04465488 | X28: 60.55 | Y28: 84.83278854 | Z28: 4.65 | AA28: 244.5 | AB28: =IF(U28<Z28,Z28,U28) -> 71.50970213 | AC28: 71.50970213 | AD28: =IF(C28<=0,"",AC28) ->  | AE28: 9 | AF28: 2607 | AG28: 489
A29: BA | B29: ='Regression Coefficients'!B29 -> CLASS A BRIDGE DECK REPAIR | C29: ='Production Rate Estimates'!D31 -> 0 | D29: 3000000 | E29: 110 | F29: 2 | G29: 1 | H29: 1 | I29: 1 | J29: 10.11363636 | K29: 7.681818182 | L29: 21.02272727 | M29: 0.8 | N29: 5.272727273 | O29: 21.14545455 | P29: ='Regression Coefficients'!C29+'Regression Coefficients'!D29*Background!C29+'Regression Coefficients'!E29*Background!D29 -> -79.66833 | Q29: =HLOOKUP(E29,'Regression Coefficients'!$F$2:$AC$33,1+MATCH(B29,'Regression Coefficients'!$B$3:$B$33,0),FALSE) -> 43 | R29: =IF(F29=1,'Regression Coefficients'!AD29,IF(F29=2,'Regression Coefficients'!AE29,IF(F29=3,'Regression Coefficients'!AF29,IF(F29=4,'Regression Coefficients'!AG29,'Regression Coefficients'!AH29)))) -> 13.225499 | S29: =IF(G29=0,'Regression Coefficients'!AI29,'Regression Coefficients'!AJ29)+IF(H29=0,'Regression Coefficients'!AK29,'Regression Coefficients'!AL29)+IF(I29=0,'Regression Coefficients'!AM29,'Regression Coefficients'!AN29) -> 0 | T29: =SUMPRODUCT('Regression Coefficients'!AO29:AT29,Background!J29:O29) -> 5.962207845 | U29: -17.48062315 | V29: 14.47450514 | W29: 4.875 | X29: 7.8 | Y29: 17.16666667 | Z29: 0.6 | AA29: 60.32 | AB29: =IF(U29<Z29,Z29,U29) -> 0.6 | AC29: 0.6 | AD29: =IF(C29<=0,"",AC29) ->  | AE29: 1 | AF29: 951 | AG29: 857
A30: BB | B30: ='Regression Coefficients'!B30 -> CONCRETE BARRIER RAIL-BRIDGE | C30: ='Production Rate Estimates'!D32 -> 0 | D30: 3000000 | E30: 110 | F30: 2 | G30: 1 | H30: 1 | I30: 1 | J30: 6.68 | K30: 5 | L30: 17.96 | M30: 0.75 | N30: 5.5 | O30: 23.21428571 | P30: ='Regression Coefficients'!C30+'Regression Coefficients'!D30*Background!C30+'Regression Coefficients'!E30*Background!D30 -> -2473.268 | Q30: =HLOOKUP(E30,'Regression Coefficients'!$F$2:$AC$33,1+MATCH(B30,'Regression Coefficients'!$B$3:$B$33,0),FALSE) -> 2486.9636 | R30: =IF(F30=1,'Regression Coefficients'!AD30,IF(F30=2,'Regression Coefficients'!AE30,IF(F30=3,'Regression Coefficients'!AF30,IF(F30=4,'Regression Coefficients'!AG30,'Regression Coefficients'!AH30)))) -> -358.2707 | S30: =IF(G30=0,'Regression Coefficients'!AI30,'Regression Coefficients'!AJ30)+IF(H30=0,'Regression Coefficients'!AK30,'Regression Coefficients'!AL30)+IF(I30=0,'Regression Coefficients'!AM30,'Regression Coefficients'!AN30) -> 0 | T30: =SUMPRODUCT('Regression Coefficients'!AO30:AT30,Background!J30:O30) -> -19.03734078 | U30: -363.6124408 | V30: 222.1675191 | W30: 88.04954068 | X30: 141.05 | Y30: 252.275 | Z30: 49.97812773 | AA30: 961.2 | AB30: =IF(U30<Z30,Z30,U30) -> 49.97812773 | AC30: 49.97812773 | AE30: 91 | AF30: 5837 | AG30: 91
A31: BC | B31: ='Regression Coefficients'!B31 -> CONCRETE-CLASS OVERLAY | C31: ='Production Rate Estimates'!D33 -> 0 | D31: 3000000 | E31: 110 | F31: 2 | G31: 1 | H31: 1 | I31: 1 | J31: 16 | K31: 12.66666667 | L31: 31 | M31: 2 | N31: 11.66666667 | O31: 26.33333333 | V31: 31.44267857 | W31: 22.68303571 | X31: 34.81035714 | Y31: 43.57 | Z31: 10.15 | AA31: 46 | AC31: =V31 -> 31.44267857 | AE31: 20 | AF31: 376 | AG31: 43
A32: BD | B32: ='Regression Coefficients'!B32 -> BRIDGE DECK MILLING | C32: ='Production Rate Estimates'!D34 -> 0 | D32: 3000000 | E32: 110 | F32: 2 | G32: 1 | H32: 1 | I32: 1 | J32: 7.857142857 | K32: 5.571428571 | L32: 19.57142857 | M32: 1 | N32: 5.857142857 | O32: 11 | P32: ='Regression Coefficients'!C32+'Regression Coefficients'!D32*Background!C32+'Regression Coefficients'!E32*Background!D32 -> 282.05314 | Q32: =HLOOKUP(E32,'Regression Coefficients'!$F$2:$AC$33,1+MATCH(B32,'Regression Coefficients'!$B$3:$B$33,0),FALSE) -> 0 | R32: =IF(F32=1,'Regression Coefficients'!AD32,IF(F32=2,'Regression Coefficients'!AE32,IF(F32=3,'Regression Coefficients'!AF32,IF(F32=4,'Regression Coefficients'!AG32,'Regression Coefficients'!AH32)))) -> 0 | S32: =IF(G32=0,'Regression Coefficients'!AI32,'Regression Coefficients'!AJ32)+IF(H32=0,'Regression Coefficients'!AK32,'Regression Coefficients'!AL32)+IF(I32=0,'Regression Coefficients'!AM32,'Regression Coefficients'!AN32) -> 0 | T32: =SUMPRODUCT('Regression Coefficients'!AO32:AT32,Background!J32:O32) -> 0 | U32: 282.05314 | V32: 472.5310967 | W32: 311.7375 | X32: 394.125 | Y32: 583.8477273 | Z32: 172.1 | AA32: 950.3222222 | AB32: =IF(U32<Z32,Z32,U32) -> 282.05314 | AC32: 282.05314 | AD32: =IF(C32<=0,"",AC32) ->  | AE32: 344 | AF32: 8553 | AG32: 1577
A33: BE | B33: ='Regression Coefficients'!B33 -> REVISE BRIDGE CONCRETE BARRIER | C33: ='Production Rate Estimates'!D35 -> 0 | D33: 3000000 | E33: 110 | F33: 2 | G33: 1 | H33: 1 | I33: 1 | J33: 12.07142857 | K33: 5.976190476 | L33: 15.57142857 | M33: 0.9565217391 | N33: 6.5 | O33: 16.36956522 | P33: ='Regression Coefficients'!C33+'Regression Coefficients'!D33*Background!C33+'Regression Coefficients'!E33*Background!D33 -> -71.58776 | Q33: =HLOOKUP(E33,'Regression Coefficients'!$F$2:$AC$33,1+MATCH(B33,'Regression Coefficients'!$B$3:$B$33,0),FALSE) -> 0 | R33: =IF(F33=1,'Regression Coefficients'!AD33,IF(F33=2,'Regression Coefficients'!AE33,IF(F33=3,'Regression Coefficients'!AF33,IF(F33=4,'Regression Coefficients'!AG33,'Regression Coefficients'!AH33)))) -> 26.332202 | S33: =IF(G33=0,'Regression Coefficients'!AI33,'Regression Coefficients'!AJ33)+IF(H33=0,'Regression Coefficients'!AK33,'Regression Coefficients'!AL33)+IF(I33=0,'Regression Coefficients'!AM33,'Regression Coefficients'!AN33) -> 0 | T33: =SUMPRODUCT('Regression Coefficients'!AO33:AT33,Background!J33:O33) -> 164.9386899 | U33: 119.6831319 | V33: 199.6882552 | W33: 69.125 | X33: 157.4 | Y33: 245.25 | Z33: 3 | AA33: 1072.75 | AB33: =IF(U33<Z33,Z33,U33) -> 119.6831319 | AC33: 119.6831319 | AD33: =IF(C33<=0,"",AC33) ->  | AE33: 3 | AF33: 8582 | AG33: 800
